{"text_format":"3","workbook":"xlsx","n_sheets":1,"sheets":["Hoja1"],"not_rendered":{"images":2,"defined_names":1},"read":"whole","date_system":"1900"}

{"sheet":"Hoja1","index":0,"n_rows":350,"n_cols":10,"rows_kept":350,"merged":[[0,1,5,2],[2,3,2,7],[3,3,3,6],[4,3,4,8]]}
[]
[]
[{"$nulls":3},"HOSPITAL PROVINCIAL GENERAL SANTIAGO RODRIGUEZ"]
[{"$nulls":3},"NOMINA DE SUELDO PERSONAL FIJO Y TEMPORALES"]
[{"$nulls":3},"Correspondientes al mes de Agosto del año 2026"]
[]
["REG.NO.","NOMBRES","APELLIDOS","SEXO","REGION","PROVINCIA","DIRECCION O DEPARTAMENTO","CARGO","CATEGORIA DEL SERVIDOR","SUELDO BRUTO"]
[1,"DILENIA DE JESUS","PAULINO TORREZ","F","REGION 4","SANTIAGO RODRIGUEZ","HOSPITAL PROVINCIAL  GENERAL SANTIAGO RODRIGUEZ","ABOGADO","ADMINISTRATIVO",{"v":22869,"d":"22,869.00"}]
[{"$f":"1+A8","v":2},"YANELA","HERNANDEZ AQUINO","F","REGION 4","SANTIAGO RODRIGUEZ","HOSPITAL PROVINCIAL  GENERAL SANTIAGO RODRIGUEZ","AUXILIAR ADMINISTRATIVO","ADMINISTRATIVO",{"v":20000,"d":"20,000.00"}]
[{"$f":"1+A9","v":3},"ANNA MAURICELYS","JIMENEZ INFANTE","F","REGION 4","SANTIAGO RODRIGUEZ","HOSPITAL PROVINCIAL  GENERAL SANTIAGO RODRIGUEZ","AUXILIAR ADMINISTRATIVO","ADMINISTRATIVO",{"v":18000,"d":"18,000.00"}]
[4,"ALBA MARIA","PEREZ HICIANO","F","REGION 4","SANTIAGO RODRIGUEZ","HOSPITAL PROVINCIAL  GENERAL SANTIAGO RODRIGUEZ","AUXILIAR ADMINISTRATIVO","ADMINISTRATIVO",{"v":18000,"d":"18,000.00"}]
[5,"NANCY","VARGAS TORRES","F","REGION 4","SANTIAGO RODRIGUEZ","HOSPITAL PROVINCIAL  GENERAL SANTIAGO RODRIGUEZ","CONTADORA","ADMINISTRATIVO",{"v":70000,"d":"70,000.00"}]
[6,"JUANA RAMONA","TORRES NUÑEZ","F","REGION 4","SANTIAGO RODRIGUEZ","HOSPITAL PROVINCIAL  GENERAL SANTIAGO RODRIGUEZ","ANALISTA DE RECURSOS HUMANOS","ADMINISTRATIVO",{"v":22000,"d":"22,000.00"}]
[7,"LUIS RAMON","ESTEVEZ ESTEVEZ","M","REGION 4","SANTIAGO RODRIGUEZ","HOSPITAL PROVINCIAL  GENERAL SANTIAGO RODRIGUEZ","ANALISTA LEGAL","ADMINISTRATIVO",{"v":22869,"d":"22,869.00"}]
[8,"RAFAELINA ALTAGRACIA","JUMELLES JUMELLES","F","REGION 4","SANTIAGO RODRIGUEZ","HOSPITAL PROVINCIAL  GENERAL SANTIAGO RODRIGUEZ","ANALISTA DE DATOS ESTADISTICOS","ADMINISTRATIVO",{"v":35000,"d":"35,000.00"}]
[9,"CATHERINE","DE LA CRUZ DE LA CRUZ","F","REGION 4","SANTIAGO RODRIGUEZ","HOSPITAL PROVINCIAL  GENERAL SANTIAGO RODRIGUEZ","ANALISTA DE CALIDAD EN LA GESTION","ADMINISTRATIVO",{"v":25000,"d":"25,000.00"}]
[10,"MIGUELINA DEL CARMEN","TORRES CASTILLO","F","REGION 4","SANTIAGO RODRIGUEZ","HOSPITAL PROVINCIAL  GENERAL SANTIAGO RODRIGUEZ","AUXILIAR DE ATENCION AL USUARIO","ADMINISTRATIVO",{"v":16500,"d":"16,500.00"}]
[11,"VICENTA CARIDAD","DIAZ","F","REGION 4","SANTIAGO RODRIGUEZ","HOSPITAL PROVINCIAL  GENERAL SANTIAGO RODRIGUEZ","AUXILIAR DE ATENCION AL USUARIO","ADMINISTRATIVO",{"v":18000,"d":"18,000.00"}]
[12,"ASHLY NASHALI","PAULINO PEREZ","F","REGION 4","SANTIAGO RODRIGUEZ","HOSPITAL PROVINCIAL  GENERAL SANTIAGO RODRIGUEZ","AUXILIAR DE ATENCION AL USUARIO","ADMINISTRATIVO",{"v":18000,"d":"18,000.00"}]
[13,"SELENNI ELIZABETH","GUZMAN GONZALEZ","F","REGION 4","SANTIAGO RODRIGUEZ","HOSPITAL PROVINCIAL  GENERAL SANTIAGO RODRIGUEZ","AUXILIAR DE ATENCION AL USUARIO","ADMINISTRATIVO",{"v":18000,"d":"18,000.00"}]
[14,"ALIANNY MICHELLE ","ZAPATA GOMEZ","F","REGION 4","SANTIAGO RODRIGUEZ","HOSPITAL PROVINCIAL  GENERAL SANTIAGO RODRIGUEZ","AUXILIAR DE ATENCION AL USUARIO","ADMINISTRATIVO",{"v":18000,"d":"18,000.00"}]
[15,"ROSANNGEL ","RUIZ ALMONTE","F","REGION 4","SANTIAGO RODRIGUEZ","HOSPITAL PROVINCIAL  GENERAL SANTIAGO RODRIGUEZ","AUXILIAR DE ATENCION AL USUARIO","ADMINISTRATIVO",{"v":18000,"d":"18,000.00"}]
[16,"ZUNILDA ALTAGRACIA","OVALLES","F","REGION 4","SANTIAGO RODRIGUEZ","HOSPITAL PROVINCIAL  GENERAL SANTIAGO RODRIGUEZ","AUXILIAR DE DIETISTA","PERSONAL DE NUTRICION",{"v":10000,"d":"10,000.00"}]
[17,"YOCATI AMBROCINA","ROMAN TAVAREZ","F","REGION 4","SANTIAGO RODRIGUEZ","HOSPITAL PROVINCIAL  GENERAL SANTIAGO RODRIGUEZ","AUXILIAR DE ENFERMERIA","AUXILIAR DE ENFERMERIA",{"v":42388,"d":"42,388.00"}]
[18,"YADIRA CELESTE","MORROBEL PEÑA","F","REGION 4","SANTIAGO RODRIGUEZ","HOSPITAL PROVINCIAL  GENERAL SANTIAGO RODRIGUEZ","AUXILIAR DE ENFERMERIA","AUXILIAR DE ENFERMERIA",{"v":42388,"d":"42,388.00"}]
[19,"DENIA LUCINA","TORRES TORRES","F","REGION 4","SANTIAGO RODRIGUEZ","HOSPITAL PROVINCIAL  GENERAL SANTIAGO RODRIGUEZ","AUXILIAR DE ENFERMERIA","AUXILIAR DE ENFERMERIA",{"v":42388,"d":"42,388.00"}]
[20,"PATRIA YOSELIN","OVALLE ESTEVEZ","F","REGION 4","SANTIAGO RODRIGUEZ","HOSPITAL PROVINCIAL  GENERAL SANTIAGO RODRIGUEZ","AUXILIAR DE ENFERMERIA","AUXILIAR DE ENFERMERIA",{"v":42388,"d":"42,388.00"}]
[21,"MARIA BRISELDA","GOMEZ","F","REGION 4","SANTIAGO RODRIGUEZ","HOSPITAL PROVINCIAL  GENERAL SANTIAGO RODRIGUEZ","AUXILIAR DE ENFERMERIA","AUXILIAR DE ENFERMERIA",{"v":42388,"d":"42,388.00"}]
[22,"MARIBEL CRISTINA","BAEZ ALEMAN","F","REGION 4","SANTIAGO RODRIGUEZ","HOSPITAL PROVINCIAL  GENERAL SANTIAGO RODRIGUEZ","AUXILIAR DE ENFERMERIA","AUXILIAR DE ENFERMERIA",{"v":42388,"d":"42,388.00"}]
[23,"RAMONA","RAMOS RODRIGUEZ","F","REGION 4","SANTIAGO RODRIGUEZ","HOSPITAL PROVINCIAL  GENERAL SANTIAGO RODRIGUEZ","AUXILIAR DE ENFERMERIA","AUXILIAR DE ENFERMERIA",{"v":42388,"d":"42,388.00"}]
[24,"ALINA BRUNELIS","PERALTA","F","REGION 4","SANTIAGO RODRIGUEZ","HOSPITAL PROVINCIAL  GENERAL SANTIAGO RODRIGUEZ","AUXILIAR DE ENFERMERIA","AUXILIAR DE ENFERMERIA",{"v":42388,"d":"42,388.00"}]
[25,"JOSEFINA MERCEDES","ESTEVEZ","F","REGION 4","SANTIAGO RODRIGUEZ","HOSPITAL PROVINCIAL  GENERAL SANTIAGO RODRIGUEZ","AUXILIAR DE ENFERMERIA","AUXILIAR DE ENFERMERIA",{"v":42388,"d":"42,388.00"}]
[26,"MIRIAM ALTAGRACIA","ROSSEAUX GEREZ DE CORCHADO","F","REGION 4","SANTIAGO RODRIGUEZ","HOSPITAL PROVINCIAL  GENERAL SANTIAGO RODRIGUEZ","AUXILIAR DE ENFERMERIA","AUXILIAR DE ENFERMERIA",{"v":42388,"d":"42,388.00"}]
[27,"ANA MERCEDES","RAMOS LOPEZ","F","REGION 4","SANTIAGO RODRIGUEZ","HOSPITAL PROVINCIAL  GENERAL SANTIAGO RODRIGUEZ","AUXILIAR DE ENFERMERIA","AUXILIAR DE ENFERMERIA",{"v":42388,"d":"42,388.00"}]
[28,"MILAGROS DE LOS ANGELES","REYES","F","REGION 4","SANTIAGO RODRIGUEZ","HOSPITAL PROVINCIAL  GENERAL SANTIAGO RODRIGUEZ","AUXILIAR DE ENFERMERIA","AUXILIAR DE ENFERMERIA",{"v":42388,"d":"42,388.00"}]
[29,"HILSA","BELLO","F","REGION 4","SANTIAGO RODRIGUEZ","HOSPITAL PROVINCIAL  GENERAL SANTIAGO RODRIGUEZ","AUXILIAR DE ENFERMERIA","AUXILIAR DE ENFERMERIA",{"v":42388,"d":"42,388.00"}]
[30,"EILEEN MAYDELINE","DIAZ RODRIGUEZ","F","REGION 4","SANTIAGO RODRIGUEZ","HOSPITAL PROVINCIAL  GENERAL SANTIAGO RODRIGUEZ","AUXILIAR DE ENFERMERIA","AUXILIAR DE ENFERMERIA",{"v":42388,"d":"42,388.00"}]
[31,"MARIA ADELA","VARGAS PEREZ","F","REGION 4","SANTIAGO RODRIGUEZ","HOSPITAL PROVINCIAL  GENERAL SANTIAGO RODRIGUEZ","AUXILIAR DE ENFERMERIA","AUXILIAR DE ENFERMERIA",{"v":42388,"d":"42,388.00"}]
[32,"EFIGENIA MERCEDES","JIMENEZ JIMENEZ","F","REGION 4","SANTIAGO RODRIGUEZ","HOSPITAL PROVINCIAL  GENERAL SANTIAGO RODRIGUEZ","AUXILIAR DE ENFERMERIA","AUXILIAR DE ENFERMERIA",{"v":42388,"d":"42,388.00"}]
[33,"GLENNY MARIA","PERALTA RODRIGUEZ","F","REGION 4","SANTIAGO RODRIGUEZ","HOSPITAL PROVINCIAL  GENERAL SANTIAGO RODRIGUEZ","AUXILIAR DE ENFERMERIA","AUXILIAR DE ENFERMERIA",{"v":42388,"d":"42,388.00"}]
[34,"CRISTINA LEANDRA","PEREZ PEREZ","F","REGION 4","SANTIAGO RODRIGUEZ","HOSPITAL PROVINCIAL  GENERAL SANTIAGO RODRIGUEZ","AUXILIAR DE ENFERMERIA","AUXILIAR DE ENFERMERIA",{"v":42388,"d":"42,388.00"}]
[35,"YURAIMA MARICEL","GARCIA ESTRELLA","F","REGION 4","SANTIAGO RODRIGUEZ","HOSPITAL PROVINCIAL  GENERAL SANTIAGO RODRIGUEZ","AUXILIAR DE ENFERMERIA","AUXILIAR DE ENFERMERIA",{"v":42388,"d":"42,388.00"}]
[36,"CARMEN ADALGISA","JIMENEZ PEÑA","F","REGION 4","SANTIAGO RODRIGUEZ","HOSPITAL PROVINCIAL  GENERAL SANTIAGO RODRIGUEZ","AUXILIAR DE ENFERMERIA","AUXILIAR DE ENFERMERIA",{"v":42388,"d":"42,388.00"}]
[37,"CRISTINA","AGUILERA ACOSTA","F","REGION 4","SANTIAGO RODRIGUEZ","HOSPITAL PROVINCIAL  GENERAL SANTIAGO RODRIGUEZ","AUXILIAR DE ENFERMERIA","AUXILIAR DE ENFERMERIA",{"v":42388,"d":"42,388.00"}]
[38,"CLAUDINA ANTONIA","ESTEVEZ JIMENEZ","F","REGION 4","SANTIAGO RODRIGUEZ","HOSPITAL PROVINCIAL  GENERAL SANTIAGO RODRIGUEZ","AUXILIAR DE ENFERMERIA","AUXILIAR DE ENFERMERIA",{"v":42388,"d":"42,388.00"}]
[39,"ARLENYS ALTAGRACIA","GOMEZ GENERE","F","REGION 4","SANTIAGO RODRIGUEZ","HOSPITAL PROVINCIAL  GENERAL SANTIAGO RODRIGUEZ","AUXILIAR DE ENFERMERIA","AUXILIAR DE ENFERMERIA",{"v":42388,"d":"42,388.00"}]
[40,"LEISY DIT","RODRIGUEZ ESTEVEZ","F","REGION 4","SANTIAGO RODRIGUEZ","HOSPITAL PROVINCIAL  GENERAL SANTIAGO RODRIGUEZ","AUXILIAR DE ENFERMERIA","AUXILIAR DE ENFERMERIA",{"v":42388,"d":"42,388.00"}]
[41,"ADALJISA DEL ROSARIO","JIMENEZ BAEZ","F","REGION 4","SANTIAGO RODRIGUEZ","HOSPITAL PROVINCIAL  GENERAL SANTIAGO RODRIGUEZ","AUXILIAR DE ENFERMERIA","AUXILIAR DE ENFERMERIA",{"v":42388,"d":"42,388.00"}]
[42,"ROSELIA MERCEDES","FERNANDEZ","F","REGION 4","SANTIAGO RODRIGUEZ","HOSPITAL PROVINCIAL  GENERAL SANTIAGO RODRIGUEZ","AUXILIAR DE ENFERMERIA","AUXILIAR DE ENFERMERIA",{"v":42388,"d":"42,388.00"}]
[43,"OLGA MILAGROS","SAINT-HILAIRE ESTEVEZ","F","REGION 4","SANTIAGO RODRIGUEZ","HOSPITAL PROVINCIAL  GENERAL SANTIAGO RODRIGUEZ","AUXILIAR DE ENFERMERIA","AUXILIAR DE ENFERMERIA",{"v":42388,"d":"42,388.00"}]
[44,"YUBERKY MARIA","TAPIA INOJOSA","F","REGION 4","SANTIAGO RODRIGUEZ","HOSPITAL PROVINCIAL  GENERAL SANTIAGO RODRIGUEZ","AUXILIAR DE ENFERMERIA","AUXILIAR DE ENFERMERIA",{"v":42388,"d":"42,388.00"}]
[45,"RAMONA DIRELIS","ARIAS PERALTA","F","REGION 4","SANTIAGO RODRIGUEZ","HOSPITAL PROVINCIAL  GENERAL SANTIAGO RODRIGUEZ","AUXILIAR DE ENFERMERIA","AUXILIAR DE ENFERMERIA",{"v":42388,"d":"42,388.00"}]
[46,"MIGUELINA DEL CARMEN","TAVARES CHAVEZ","F","REGION 4","SANTIAGO RODRIGUEZ","HOSPITAL PROVINCIAL  GENERAL SANTIAGO RODRIGUEZ","AUXILIAR DE ENFERMERIA","AUXILIAR DE ENFERMERIA",{"v":42388,"d":"42,388.00"}]
[47,"RAMONA YUDERKI","VALERIO","F","REGION 4","SANTIAGO RODRIGUEZ","HOSPITAL PROVINCIAL  GENERAL SANTIAGO RODRIGUEZ","AUXILIAR DE ENFERMERIA","AUXILIAR DE ENFERMERIA",{"v":42388,"d":"42,388.00"}]
[48,"MARIA DE LA CRUZ","VARGAS FLERI","F","REGION 4","SANTIAGO RODRIGUEZ","HOSPITAL PROVINCIAL  GENERAL SANTIAGO RODRIGUEZ","AUXILIAR DE ENFERMERIA","AUXILIAR DE ENFERMERIA",{"v":42388,"d":"42,388.00"}]
[49,"ROSA MIGUELINA","RODRIGUEZ REYES","F","REGION 4","SANTIAGO RODRIGUEZ","HOSPITAL PROVINCIAL  GENERAL SANTIAGO RODRIGUEZ","AUXILIAR DE ENFERMERIA","AUXILIAR DE ENFERMERIA",{"v":42388,"d":"42,388.00"}]
[50,"MARIA EVANGELISTA","ROSARIO TORRES","F","REGION 4","SANTIAGO RODRIGUEZ","HOSPITAL PROVINCIAL  GENERAL SANTIAGO RODRIGUEZ","AUXILIAR DE ENFERMERIA","AUXILIAR DE ENFERMERIA",{"v":42388,"d":"42,388.00"}]
[51,"ANA ANTONIA","RUMALDO DIAZ","F","REGION 4","SANTIAGO RODRIGUEZ","HOSPITAL PROVINCIAL  GENERAL SANTIAGO RODRIGUEZ","AUXILIAR DE ENFERMERIA","AUXILIAR DE ENFERMERIA",{"v":42388,"d":"42,388.00"}]
[52,"ANGELITA","CABREJA PEÑA","F","REGION 4","SANTIAGO RODRIGUEZ","HOSPITAL PROVINCIAL  GENERAL SANTIAGO RODRIGUEZ","AUXILIAR DE ENFERMERIA","AUXILIAR DE ENFERMERIA",{"v":42388,"d":"42,388.00"}]
[53,"QUENIA","ROSARIO TEJADA","F","REGION 4","SANTIAGO RODRIGUEZ","HOSPITAL PROVINCIAL  GENERAL SANTIAGO RODRIGUEZ","AUXILIAR DE ENFERMERIA","AUXILIAR DE ENFERMERIA",{"v":42388,"d":"42,388.00"}]
[54,"SANTA EXPEDITA","GARCIA ZAPATA","F","REGION 4","SANTIAGO RODRIGUEZ","HOSPITAL PROVINCIAL  GENERAL SANTIAGO RODRIGUEZ","AUXILIAR DE ENFERMERIA","AUXILIAR DE ENFERMERIA",{"v":42388,"d":"42,388.00"}]
[55,"FELVIANIS MARIELA","DOMINGUEZ ALMANZAR","F","REGION 4","SANTIAGO RODRIGUEZ","HOSPITAL PROVINCIAL  GENERAL SANTIAGO RODRIGUEZ","AUXILIAR DE ENFERMERIA","AUXILIAR DE ENFERMERIA",{"v":42388,"d":"42,388.00"}]
[56,"MARIA DE LOS ANGELES","GOMEZ","F","REGION 4","SANTIAGO RODRIGUEZ","HOSPITAL PROVINCIAL  GENERAL SANTIAGO RODRIGUEZ","AUXILIAR DE ENFERMERIA","AUXILIAR DE ENFERMERIA",{"v":42388,"d":"42,388.00"}]
[57,"MARIANA MERCEDES","VARGAS","F","REGION 4","SANTIAGO RODRIGUEZ","HOSPITAL PROVINCIAL  GENERAL SANTIAGO RODRIGUEZ","AUXILIAR DE ENFERMERIA","AUXILIAR DE ENFERMERIA",{"v":42388,"d":"42,388.00"}]
[58,"JULIANA ANTONIA","MUÑOZ RODRIGUEZ","F","REGION 4","SANTIAGO RODRIGUEZ","HOSPITAL PROVINCIAL  GENERAL SANTIAGO RODRIGUEZ","AUXILIAR DE ENFERMERIA","AUXILIAR DE ENFERMERIA",{"v":42388,"d":"42,388.00"}]
[59,"ARISLEYDI","PEREZ REYES","F","REGION 4","SANTIAGO RODRIGUEZ","HOSPITAL PROVINCIAL  GENERAL SANTIAGO RODRIGUEZ","AUXILIAR DE ENFERMERIA","AUXILIAR DE ENFERMERIA",{"v":42388,"d":"42,388.00"}]
[60,"YEIMY ODIL","GARCIA CAMPOS DE PEREZ","F","REGION 4","SANTIAGO RODRIGUEZ","HOSPITAL PROVINCIAL  GENERAL SANTIAGO RODRIGUEZ","AUXILIAR DE ENFERMERIA","AUXILIAR DE ENFERMERIA",{"v":42388,"d":"42,388.00"}]
[61,"YOKASTA ","VALERIO ESTEVEZ","F","REGION 4","SANTIAGO RODRIGUEZ","HOSPITAL PROVINCIAL  GENERAL SANTIAGO RODRIGUEZ","AUXILIAR DE ENFERMERIA","AUXILIAR DE ENFERMERIA",{"v":42388,"d":"42,388.00"}]
[62,"DOMINGO MARTIN","TINEO DIAZ","M","REGION 4","SANTIAGO RODRIGUEZ","HOSPITAL PROVINCIAL  GENERAL SANTIAGO RODRIGUEZ","AUXILIAR DE FACTURACION Y SEGURO","ADMINISTRATIVO",{"v":16500,"d":"16,500.00"}]
[63,"YOELI ALTAGRACIA","CRUZ TORRES","F","REGION 4","SANTIAGO RODRIGUEZ","HOSPITAL PROVINCIAL  GENERAL SANTIAGO RODRIGUEZ","AUXILIAR DE FACTURACION Y SEGURO","ADMINISTRATIVO",{"v":16500,"d":"16,500.00"}]
[64,"MARLENY LARIBEX","REYES TORRES","F","REGION 4","SANTIAGO RODRIGUEZ","HOSPITAL PROVINCIAL  GENERAL SANTIAGO RODRIGUEZ","AUXILIAR DE FACTURACION Y SEGURO","ADMINISTRATIVO",{"v":18000,"d":"18,000.00"}]
[65,"EVELIN JOSEFINA","BAEZ JIMENEZ","F","REGION 4","SANTIAGO RODRIGUEZ","HOSPITAL PROVINCIAL  GENERAL SANTIAGO RODRIGUEZ","AUXILIAR DE FACTURACION Y SEGURO","ADMINISTRATIVO",{"v":16500,"d":"16,500.00"}]
[66,"YEUDY MIGUEL","TORRES RODRIGUEZ","M","REGION 4","SANTIAGO RODRIGUEZ","HOSPITAL PROVINCIAL  GENERAL SANTIAGO RODRIGUEZ","AUXILIAR DE FACTURACION Y SEGURO","ADMINISTRATIVO",{"v":16500,"d":"16,500.00"}]
[{"$f":"1+A73","v":67},"DANIEL ALBERTO","TORRES VARGAS","F","REGION 4","SANTIAGO RODRIGUEZ","HOSPITAL PROVINCIAL  GENERAL SANTIAGO RODRIGUEZ","AUXILIAR DE FACTURACION Y SEGURO","ADMINISTRATIVO",{"v":18000,"d":"18,000.00"}]
[68,"ANNY YANEYRA ","ESTEVEZ DE JIMENZ","F","REGION 4","SANTIAGO RODRIGUEZ","HOSPITAL PROVINCIAL  GENERAL SANTIAGO RODRIGUEZ","AUXILIAR DE FACTURACION Y SEGURO","ADMINISTRATIVO",{"v":18000,"d":"18,000.00"}]
[69,"ANYELY MARIANNY ","NUÑEZ ALBURQUERQU","F","REGION 4","SANTIAGO RODRIGUEZ","HOSPITAL PROVINCIAL  GENERAL SANTIAGO RODRIGUEZ","AUXILIAR DE FACTURACION Y SEGURO","ADMINISTRATIVO",{"v":18000,"d":"18,000.00"}]
[70,"JUNIOR FELIX","VENTURA MARTINEZ","F","REGION 4","SANTIAGO RODRIGUEZ","HOSPITAL PROVINCIAL  GENERAL SANTIAGO RODRIGUEZ","AUXILIAR DE FACTURACION Y SEGURO","ADMINISTRATIVO",{"v":18000,"d":"18,000.00"}]
[71,"YULIZA MERCEDES ","BARRIENTOS RODRIGUEZ","F","REGION 4","SANTIAGO RODRIGUEZ","HOSPITAL PROVINCIAL  GENERAL SANTIAGO RODRIGUEZ","AUXILIAR DE FACTURACION Y SEGURO","ADMINISTRATIVO",{"v":18000,"d":"18,000.00"}]
[72,"DENIXA LISVETH ","ESPINAL SAINT-HILAIRE","F","REGION 4","SANTIAGO RODRIGUEZ","HOSPITAL PROVINCIAL  GENERAL SANTIAGO RODRIGUEZ","AUXILIAR DE FACTURACION Y SEGURO","ADMINISTRATIVO",{"v":18000,"d":"18,000.00"}]
[73,"GERDY ELIZABETH","MONSANTO PERALTA","F","REGION 4","SANTIAGO RODRIGUEZ","HOSPITAL PROVINCIAL  GENERAL SANTIAGO RODRIGUEZ","AUXILIAR DE FACTURACION Y SEGURO","ADMINISTRATIVO",{"v":18000,"d":"18,000.00"}]
[74,"KAREN LIZBETH","MENDEZ JIMENEZ","F","REGION 4","SANTIAGO RODRIGUEZ","HOSPITAL PROVINCIAL  GENERAL SANTIAGO RODRIGUEZ","AUXILIAR DE FARMACIA","FARMACEUTICOS",{"v":31416,"d":"31,416.00"}]
[75,"ROSELY MICHEL","RODRIGUEZ RODRIGUEZ","F","REGION 4","SANTIAGO RODRIGUEZ","HOSPITAL PROVINCIAL  GENERAL SANTIAGO RODRIGUEZ","AUXILIAR DE FARMACIA","FARMACEUTICOS",{"v":31416,"d":"31,416.00"}]
[76,"VICTORIA ESMERALDA","CUEVAS FELIZ","F","REGION 4","SANTIAGO RODRIGUEZ","HOSPITAL PROVINCIAL  GENERAL SANTIAGO RODRIGUEZ","AUXILIAR DE FARMACIA","FARMACEUTICOS",{"v":31416,"d":"31,416.00"}]
[77,"IRIS MARIELIS","ESTEVEZ DE VALERIO","F","REGION 4","SANTIAGO RODRIGUEZ","HOSPITAL PROVINCIAL  GENERAL SANTIAGO RODRIGUEZ","AUXILIAR DE FARMACIA","FARMACEUTICOS",{"v":31416,"d":"31,416.00"}]
[78,"MARIA DOLORES","CRUZ DE GOMEZ ","F","REGION 4","SANTIAGO RODRIGUEZ","HOSPITAL PROVINCIAL  GENERAL SANTIAGO RODRIGUEZ","AUXILIAR DE FARMACIA","FARMACEUTICOS",{"v":31416,"d":"31,416.00"}]
[79,"ELVIANNY RAFAELINA","ZAPATA SAINT-HILAIRE","F","REGION 4","SANTIAGO RODRIGUEZ","HOSPITAL PROVINCIAL  GENERAL SANTIAGO RODRIGUEZ","AUXILIAR DE FARMACIA","FARMACEUTICOS",{"v":31416,"d":"31,416.00"}]
[80,"MONICA DEL CARMEN","BOURDIERD BAEZ","F","REGION 4","SANTIAGO RODRIGUEZ","HOSPITAL PROVINCIAL  GENERAL SANTIAGO RODRIGUEZ","AUXILIAR DENTAL","ODONTOLOGIA",{"v":32340,"d":"32,340.00"}]
[81,"LISBETH","JIMENEZ RODRIGUEZ","F","REGION 4","SANTIAGO RODRIGUEZ","HOSPITAL PROVINCIAL  GENERAL SANTIAGO RODRIGUEZ","AUXILIAR DENTAL","ODONTOLOGIA",{"v":32340,"d":"32,340.00"}]
[82,"GLENI ENEROLIZA","MARTINEZ ALMANZAR","F","REGION 4","SANTIAGO RODRIGUEZ","HOSPITAL PROVINCIAL  GENERAL SANTIAGO RODRIGUEZ","AUXILIAR DENTAL","ODONTOLOGIA",{"v":32340,"d":"32,340.00"}]
[83,"ALEX ","SANTANA CARRASCO","M","REGION 4","SANTIAGO RODRIGUEZ","HOSPITAL PROVINCIAL  GENERAL SANTIAGO RODRIGUEZ","AUXILIAR ADMINISTRATIVO","ADMINISTRATIVO",{"v":18000,"d":"18,000.00"}]
[84,"CARMEN CELESTE","FERNANDEZ TORRES","F","REGION 4","SANTIAGO RODRIGUEZ","HOSPITAL PROVINCIAL  GENERAL SANTIAGO RODRIGUEZ","BIONALISTA","LABORATORIO",{"v":51513,"d":"51,513.00"}]
[85,"ELIZABETH","REYNOSO SERRATA","F","REGION 4","SANTIAGO RODRIGUEZ","HOSPITAL PROVINCIAL  GENERAL SANTIAGO RODRIGUEZ","BIONALISTA","LABORATORIO",{"v":51513,"d":"51,513.00"}]
[86,"WANDA ROSANNA","RODRIGUEZ JIMENEZ","F","REGION 4","SANTIAGO RODRIGUEZ","HOSPITAL PROVINCIAL  GENERAL SANTIAGO RODRIGUEZ","BIONALISTA","LABORATORIO",{"v":51513,"d":"51,513.00"}]
[87,"MORENA DEL ROSARIO","ESPINAL BATISTA","F","REGION 4","SANTIAGO RODRIGUEZ","HOSPITAL PROVINCIAL  GENERAL SANTIAGO RODRIGUEZ","BIONALISTA","LABORATORIO",{"v":51513,"d":"51,513.00"}]
[88,"LUCIA ALTAGRACIA","TORRES FRANCO","F","REGION 4","SANTIAGO RODRIGUEZ","HOSPITAL PROVINCIAL  GENERAL SANTIAGO RODRIGUEZ","BIONALISTA","LABORATORIO",{"v":51513,"d":"51,513.00"}]
[89,"KIARA ESPERANZA","ESCOTO ROSARIO","F","REGION 4","SANTIAGO RODRIGUEZ","HOSPITAL PROVINCIAL  GENERAL SANTIAGO RODRIGUEZ","BIONALISTA","LABORATORIO",{"v":51513,"d":"51,513.00"}]
[90,"FATIMA GREGORIA","BATISTA ALCANTARA","F","REGION 4","SANTIAGO RODRIGUEZ","HOSPITAL PROVINCIAL  GENERAL SANTIAGO RODRIGUEZ","BIONALISTA","LABORATORIO",{"v":51513,"d":"51,513.00"}]
[91,"ALICIA ALTAGRACIA","OLIVO ALMONTE DE ECHEVARRIA","F","REGION 4","SANTIAGO RODRIGUEZ","HOSPITAL PROVINCIAL  GENERAL SANTIAGO RODRIGUEZ","BIONALISTA","LABORATORIO",{"v":51513,"d":"51,513.00"}]
[92,"DOMINGA ANTONIA","MARTE ESTEVEZ","F","REGION 4","SANTIAGO RODRIGUEZ","HOSPITAL PROVINCIAL  GENERAL SANTIAGO RODRIGUEZ","BIONALISTA","LABORATORIO",{"v":51513,"d":"51,513.00"}]
[93,"JOSEFINA MERCEDES","ALMANZAR BAEZ","F","REGION 4","SANTIAGO RODRIGUEZ","HOSPITAL PROVINCIAL  GENERAL SANTIAGO RODRIGUEZ","BIONALISTA","LABORATORIO",{"v":51513,"d":"51,513.00"}]
[94,"YESENIA YANIRIS","SUSAÑA PILARTE","F","REGION 4","SANTIAGO RODRIGUEZ","HOSPITAL PROVINCIAL  GENERAL SANTIAGO RODRIGUEZ","BIONALISTA","LABORATORIO",{"v":51513,"d":"51,513.00"}]
[95,"AWILDA YASMIN","CABRERA REYES","F","REGION 4","SANTIAGO RODRIGUEZ","HOSPITAL PROVINCIAL  GENERAL SANTIAGO RODRIGUEZ","BIONALISTA","LABORATORIO",{"v":51513,"d":"51,513.00"}]
[96,"VANELMI ENEROLIZA","ESTEVEZ DIAZ","F","REGION 4","SANTIAGO RODRIGUEZ","HOSPITAL PROVINCIAL  GENERAL SANTIAGO RODRIGUEZ","BIONALISTA","LABORATORIO",{"v":51513,"d":"51,513.00"}]
[97,"YAMEL ALTAGRACIA","HINOJOSA ESPINAL","F","REGION 4","SANTIAGO RODRIGUEZ","HOSPITAL PROVINCIAL  GENERAL SANTIAGO RODRIGUEZ","BIONALISTA","LABORATORIO",{"v":51513,"d":"51,513.00"}]
[98,"ARIANA FEDELINA ","SOSA VELEZ","F","REGION 4","SANTIAGO RODRIGUEZ","HOSPITAL PROVINCIAL  GENERAL SANTIAGO RODRIGUEZ","BIONALISTA","LABORATORIO",{"v":51513,"d":"51,513.00"}]
[99,"MARIELA ","LORA PEREZ","F","REGION 4","SANTIAGO RODRIGUEZ","HOSPITAL PROVINCIAL  GENERAL SANTIAGO RODRIGUEZ","BIONALISTA","LABORATORIO",{"v":51513,"d":"51,513.00"}]
[100,"WENDY PAOLA","TORRES RODRIGUEZ","F","REGION 4","SANTIAGO RODRIGUEZ","HOSPITAL PROVINCIAL  GENERAL SANTIAGO RODRIGUEZ","BIONALISTA","LABORATORIO",{"v":51513,"d":"51,513.00"}]
[101,"CARMEN ROSA","TORRES GIL","F","REGION 4","SANTIAGO RODRIGUEZ","HOSPITAL PROVINCIAL  GENERAL SANTIAGO RODRIGUEZ","BIONALISTA","LABORATORIO",{"v":51513,"d":"51,513.00"}]
[102,"ARELYS ALTAGRACIA","ESPINAL AGUILERA","F","REGION 4","SANTIAGO RODRIGUEZ","HOSPITAL PROVINCIAL  GENERAL SANTIAGO RODRIGUEZ","BIONALISTA","LABORATORIO",{"v":51513,"d":"51,513.00"}]
[103,"FEDERICO DE JESUS","VARGAS CASTILLO","M","REGION 4","SANTIAGO RODRIGUEZ","HOSPITAL PROVINCIAL  GENERAL SANTIAGO RODRIGUEZ","CAMILLERO (A)","ADMINISTRATIVO",{"v":15000,"d":"15,000.00"}]
[104,"NAYRIEL ALEXANDER ","CABA NUÑEZ","M","REGION 4","SANTIAGO RODRIGUEZ","HOSPITAL PROVINCIAL  GENERAL SANTIAGO RODRIGUEZ","CAMILLERO (A)","ADMINISTRATIVO",{"v":15000,"d":"15,000.00"}]
[105,"ANTONIO DE LA CRUZ ","JIMENEZ DE LOS SANTOS","M","REGION 4","SANTIAGO RODRIGUEZ","HOSPITAL PROVINCIAL  GENERAL SANTIAGO RODRIGUEZ","CAMILLERO (A)","ADMINISTRATIVO",{"v":15000,"d":"15,000.00"}]
[106,"PEDRO ALFONSO","REYES ABREU","M","REGION 4","SANTIAGO RODRIGUEZ","HOSPITAL PROVINCIAL  GENERAL SANTIAGO RODRIGUEZ","CAMILLERO (A)","ADMINISTRATIVO",{"v":15000,"d":"15,000.00"}]
[107,"JOHNNATTAN RAFAEL","ROMERO ABREU","M","REGION 4","SANTIAGO RODRIGUEZ","HOSPITAL PROVINCIAL  GENERAL SANTIAGO RODRIGUEZ","CAMILLERO (A)","ADMINISTRATIVO",{"v":15000,"d":"15,000.00"}]
[108,"DARIEL","AMARANTE SOLIS","M","REGION 4","SANTIAGO RODRIGUEZ","HOSPITAL PROVINCIAL  GENERAL SANTIAGO RODRIGUEZ","CAMILLERO (A)","ADMINISTRATIVO",{"v":15000,"d":"15,000.00"}]
[109,"RAMON FERNANDO","CABRERA RODRIGUEZ","M","REGION 4","SANTIAGO RODRIGUEZ","HOSPITAL PROVINCIAL  GENERAL SANTIAGO RODRIGUEZ","CHOFER","ADMINISTRATIVO",{"v":14300,"d":"14,300.00"}]
[110,"FELIX ALBERTO","ALVAREZ RODRIGUEZ","M","REGION 4","SANTIAGO RODRIGUEZ","HOSPITAL PROVINCIAL  GENERAL SANTIAGO RODRIGUEZ","CHOFER","ADMINISTRATIVO",{"v":14300,"d":"14,300.00"}]
[111,"WILSON NELLYS","ESTEVEZ VALERIO","M","REGION 4","SANTIAGO RODRIGUEZ","HOSPITAL PROVINCIAL  GENERAL SANTIAGO RODRIGUEZ","CHOFER","ADMINISTRATIVO",{"v":14300,"d":"14,300.00"}]
[112,"HERMINIO MANUEL","ZAPATA ZAPATA","M","REGION 4","SANTIAGO RODRIGUEZ","HOSPITAL PROVINCIAL  GENERAL SANTIAGO RODRIGUEZ","CHOFER","ADMINISTRATIVO",{"v":18000,"d":"18,000.00"}]
[113,"JUANA","REYES","F","REGION 4","SANTIAGO RODRIGUEZ","HOSPITAL PROVINCIAL  GENERAL SANTIAGO RODRIGUEZ","COCINERA","ADMINISTRATIVO",{"v":11000,"d":"11,000.00"}]
[114,"LUCIA ALTAGRACIA","PERALTA TEJADA","F","REGION 4","SANTIAGO RODRIGUEZ","HOSPITAL PROVINCIAL  GENERAL SANTIAGO RODRIGUEZ","COCINERA","ADMINISTRATIVO",{"v":10000,"d":"10,000.00"}]
[115,"MARTHA","BRITO MORALES","F","REGION 4","SANTIAGO RODRIGUEZ","HOSPITAL PROVINCIAL  GENERAL SANTIAGO RODRIGUEZ","COCINERA","ADMINISTRATIVO",{"v":11000,"d":"11,000.00"}]
[116,"MARIA ALTAGRACIA","PEÑA GEREZ","F","REGION 4","SANTIAGO RODRIGUEZ","HOSPITAL PROVINCIAL  GENERAL SANTIAGO RODRIGUEZ","CONSEJERO ( A ) PAR","OTRO PERSONAL DE SALUD",{"v":15000,"d":"15,000.00"}]
[117,"MIGUELINA DEL CARMEN","RODRIGUEZ","F","REGION 4","SANTIAGO RODRIGUEZ","HOSPITAL PROVINCIAL  GENERAL SANTIAGO RODRIGUEZ","CONSERJE","ADMINISTRATIVO",{"v":11000,"d":"11,000.00"}]
[118,"ROSA MILADY","TORRES VIDAL","F","REGION 4","SANTIAGO RODRIGUEZ","HOSPITAL PROVINCIAL  GENERAL SANTIAGO RODRIGUEZ","CONSERJE","ADMINISTRATIVO",{"v":11000,"d":"11,000.00"}]
[119,"KARINI","ALVAREZ TEJADA","F","REGION 4","SANTIAGO RODRIGUEZ","HOSPITAL PROVINCIAL  GENERAL SANTIAGO RODRIGUEZ","CONSERJE","ADMINISTRATIVO",{"v":14000,"d":"14,000.00"}]
[120,"JUANA ANTONIA","VALDEZ TEJADA","F","REGION 4","SANTIAGO RODRIGUEZ","HOSPITAL PROVINCIAL  GENERAL SANTIAGO RODRIGUEZ","CONSERJE","ADMINISTRATIVO",{"v":11000,"d":"11,000.00"}]
[121,"MARIA ANATALIA","TORIBIO","F","REGION 4","SANTIAGO RODRIGUEZ","HOSPITAL PROVINCIAL  GENERAL SANTIAGO RODRIGUEZ","CONSERJE","ADMINISTRATIVO",{"v":10000,"d":"10,000.00"}]
[122,"ELENA YOSELIN","BELLIARD VARGAS","F","REGION 4","SANTIAGO RODRIGUEZ","HOSPITAL PROVINCIAL  GENERAL SANTIAGO RODRIGUEZ","CONSERJE","ADMINISTRATIVO",{"v":10000,"d":"10,000.00"}]
[123,"YOSELYN ALTAGRACIA","ZABALA DIAZ","F","REGION 4","SANTIAGO RODRIGUEZ","HOSPITAL PROVINCIAL  GENERAL SANTIAGO RODRIGUEZ","CONSERJE","ADMINISTRATIVO",{"v":11000,"d":"11,000.00"}]
[124,"LORENZA ANTONIA","TORRES JAQUEZ","F","REGION 4","SANTIAGO RODRIGUEZ","HOSPITAL PROVINCIAL  GENERAL SANTIAGO RODRIGUEZ","CONSERJE","ADMINISTRATIVO",{"v":11000,"d":"11,000.00"}]
[125,"MILEDYS DE JESUS","RODRIGUEZ TORRES","F","REGION 4","SANTIAGO RODRIGUEZ","HOSPITAL PROVINCIAL  GENERAL SANTIAGO RODRIGUEZ","CONSERJE","ADMINISTRATIVO",{"v":10000,"d":"10,000.00"}]
[126,"YASELIS","MARTINEZ CORDERO","F","REGION 4","SANTIAGO RODRIGUEZ","HOSPITAL PROVINCIAL  GENERAL SANTIAGO RODRIGUEZ","CONSERJE","ADMINISTRATIVO",{"v":11000,"d":"11,000.00"}]
[127,"REYNA DE JESUS","MARTE VARGAS","F","REGION 4","SANTIAGO RODRIGUEZ","HOSPITAL PROVINCIAL  GENERAL SANTIAGO RODRIGUEZ","CONSERJE","ADMINISTRATIVO",{"v":10000,"d":"10,000.00"}]
[128,"TERESA DE JESUS","RODRIGUEZ","F","REGION 4","SANTIAGO RODRIGUEZ","HOSPITAL PROVINCIAL  GENERAL SANTIAGO RODRIGUEZ","CONSERJE","ADMINISTRATIVO",{"v":10000,"d":"10,000.00"}]
[129,"ASMILKA ALTAGRACIA","PEÑA BAEZ","F","REGION 4","SANTIAGO RODRIGUEZ","HOSPITAL PROVINCIAL  GENERAL SANTIAGO RODRIGUEZ","CONSERJE","ADMINISTRATIVO",{"v":11000,"d":"11,000.00"}]
[130,"LUCIA","VASQUEZ BAEZ","F","REGION 4","SANTIAGO RODRIGUEZ","HOSPITAL PROVINCIAL  GENERAL SANTIAGO RODRIGUEZ","CONSERJE","ADMINISTRATIVO",{"v":10000,"d":"10,000.00"}]
[{"$f":"1+A137","v":131},"MARCELINA","ALVAREZ NUÑEZ","F","REGION 4","SANTIAGO RODRIGUEZ","HOSPITAL PROVINCIAL  GENERAL SANTIAGO RODRIGUEZ","CONSERJE","ADMINISTRATIVO",{"v":11000,"d":"11,000.00"}]
[132,"FATIMA JOSEFA","VENTURA","F","REGION 4","SANTIAGO RODRIGUEZ","HOSPITAL PROVINCIAL  GENERAL SANTIAGO RODRIGUEZ","CONSERJE","ADMINISTRATIVO",{"v":14000,"d":"14,000.00"}]
[133,"CATALINA","RODRIGUEZ UCETA","F","REGION 4","SANTIAGO RODRIGUEZ","HOSPITAL PROVINCIAL  GENERAL SANTIAGO RODRIGUEZ","CONSERJE","ADMINISTRATIVO",{"v":11000,"d":"11,000.00"}]
[134,"MARTA YAQUELIN","JIMENEZ ALVAREZ","F","REGION 4","SANTIAGO RODRIGUEZ","HOSPITAL PROVINCIAL  GENERAL SANTIAGO RODRIGUEZ","CONSERJE","ADMINISTRATIVO",{"v":11000,"d":"11,000.00"}]
[135,"YRISLEYDA DE LOS ANGELES","ACOSTA DE PERALTA","F","REGION 4","SANTIAGO RODRIGUEZ","HOSPITAL PROVINCIAL  GENERAL SANTIAGO RODRIGUEZ","CONSERJE","ADMINISTRATIVO",{"v":14000,"d":"14,000.00"}]
[136,"DOMINGA MARIANA ","CABRERA","F","REGION 4","SANTIAGO RODRIGUEZ","HOSPITAL PROVINCIAL  GENERAL SANTIAGO RODRIGUEZ","CONSERJE","ADMINISTRATIVO",{"v":14000,"d":"14,000.00"}]
[137,"PAMELA DAMARIS ","TAVAREZ MONTERO","F","REGION 4","SANTIAGO RODRIGUEZ","HOSPITAL PROVINCIAL  GENERAL SANTIAGO RODRIGUEZ","CONSERJE","ADMINISTRATIVO",{"v":14000,"d":"14,000.00"}]
[138,"SILVIA DAMARYS ","JIMENEZ REYES","F","REGION 4","SANTIAGO RODRIGUEZ","HOSPITAL PROVINCIAL  GENERAL SANTIAGO RODRIGUEZ","CONSERJE","ADMINISTRATIVO",{"v":14000,"d":"14,000.00"}]
[139,"DORIBEL MERCEDES ","BRITO ROSARIO","F","REGION 4","SANTIAGO RODRIGUEZ","HOSPITAL PROVINCIAL  GENERAL SANTIAGO RODRIGUEZ","CONSERJE","ADMINISTRATIVO",{"v":14000,"d":"14,000.00"}]
[140,"ARIENNY ALTAGRACIA","RODRIGUEZ TORRES","F","REGION 4","SANTIAGO RODRIGUEZ","HOSPITAL PROVINCIAL  GENERAL SANTIAGO RODRIGUEZ","CONSERJE","ADMINISTRATIVO",{"v":14000,"d":"14,000.00"}]
[141,"INMACULADA ALTAGRACIA","FERNANDEZ TORRES","F","REGION 4","SANTIAGO RODRIGUEZ","HOSPITAL PROVINCIAL  GENERAL SANTIAGO RODRIGUEZ","COSTURERA","ADMINISTRATIVO",{"v":14000,"d":"14,000.00"}]
[142,"SANDRA FELICIA","SOSA RODRIGUEZ","F","REGION 4","SANTIAGO RODRIGUEZ","HOSPITAL PROVINCIAL  GENERAL SANTIAGO RODRIGUEZ","CONTADOR","ADMINISTRATIVO",{"v":25000,"d":"25,000.00"}]
[143,"ROSA ELBA","FERNANDEZ NUÑEZ","F","REGION 4","SANTIAGO RODRIGUEZ","HOSPITAL PROVINCIAL  GENERAL SANTIAGO RODRIGUEZ","CONTADOR","ADMINISTRATIVO",{"v":25000,"d":"25,000.00"}]
[144,"LUZQUEYDI MARIA","MARTINEZ BRITO","F","REGION 4","SANTIAGO RODRIGUEZ","HOSPITAL PROVINCIAL  GENERAL SANTIAGO RODRIGUEZ","CONTADOR","ADMINISTRATIVO",{"v":25000,"d":"25,000.00"}]
[145,"VILMA ESTHER","RODRIGUEZ JIMENEZ","F","REGION 4","SANTIAGO RODRIGUEZ","HOSPITAL PROVINCIAL  GENERAL SANTIAGO RODRIGUEZ","COORDINADOR DE HOSTELERIA","ADMINISTRATIVO",{"v":20000,"d":"20,000.00"}]
[146,"KATIA ELIZABETH","PERALTA RODRIGUEZ","F","REGION 4","SANTIAGO RODRIGUEZ","HOSPITAL PROVINCIAL  GENERAL SANTIAGO RODRIGUEZ","DESPENSISTA","ADMINISTRATIVO",{"v":10000,"d":"10,000.00"}]
[147,"RAMONA EMILIA","PEREZ SANTANA","F","REGION 4","SANTIAGO RODRIGUEZ","HOSPITAL PROVINCIAL  GENERAL SANTIAGO RODRIGUEZ","DESPENSISTA","ADMINISTRATIVO",{"v":14000,"d":"14,000.00"}]
[148,"JARLINE PAOLA","GOMEZ TORRES","F","REGION 4","SANTIAGO RODRIGUEZ","HOSPITAL PROVINCIAL  GENERAL SANTIAGO RODRIGUEZ","DIGITADORA","ADMINISTRATIVO",{"v":18000,"d":"18,000.00"}]
[149,"CHANTAL NOEMI","RUDESINDO PERALTA","F","REGION 4","SANTIAGO RODRIGUEZ","HOSPITAL PROVINCIAL  GENERAL SANTIAGO RODRIGUEZ","DIGITADORA","ADMINISTRATIVO",{"v":18000,"d":"18,000.00"}]
[150,"LOURDES BERONICA","PERDOMO","F","REGION 4","SANTIAGO RODRIGUEZ","HOSPITAL PROVINCIAL  GENERAL SANTIAGO RODRIGUEZ","DIRECTOR(A)","ADMINISTRATIVO",{"v":140000,"d":"140,000.00"}]
[151,"YAMARIS JOSEFINA","RODRIGUEZ DE GONZALEZ","F","REGION 4","SANTIAGO RODRIGUEZ","HOSPITAL PROVINCIAL  GENERAL SANTIAGO RODRIGUEZ","EMERGENCIOLO","MEDICO ESPECIALISTA",{"v":88506,"d":"88,506.00"}]
[152,"CLARIBEL MARIA","NUÑEZ ROMAN","F","REGION 4","SANTIAGO RODRIGUEZ","HOSPITAL PROVINCIAL  GENERAL SANTIAGO RODRIGUEZ","ENCARGADA DIETETICA","PERSONAL DE NUTRICION",{"v":10000,"d":"10,000.00"}]
[153,"ALEJANDRINA MERCEDES","OVALLE TORRES","F","REGION 4","SANTIAGO RODRIGUEZ","HOSPITAL PROVINCIAL  GENERAL SANTIAGO RODRIGUEZ","EDUCADOR PARA LA SALUD LOCAL","ADMINISTRATIVO",{"v":10000,"d":"10,000.00"}]
[154,"SORAIDA SORIBER","RODRIGUEZ RODRIGUEZ","F","REGION 4","SANTIAGO RODRIGUEZ","HOSPITAL PROVINCIAL  GENERAL SANTIAGO RODRIGUEZ","ENCARGADO (A) DE LABORATORIO","LABORATORIO",{"v":56000,"d":"56,000.00"}]
[155,"ZOILA NAUMIS","RODRIGUEZ DE LOS SANTOS","F","REGION 4","SANTIAGO RODRIGUEZ","HOSPITAL PROVINCIAL  GENERAL SANTIAGO RODRIGUEZ","ENCARGADO(A) DE LA UNIDAD DE BACILOSCOPIA Y DIAG DE BK","LABORATORIO",{"v":55000,"d":"55,000.00"}]
[156,"CRISTIAN MERCEDES","PILARTE SANTOS","M","REGION 4","SANTIAGO RODRIGUEZ","HOSPITAL PROVINCIAL  GENERAL SANTIAGO RODRIGUEZ","BIOANALISTA","LABORATORIO",{"v":51513,"d":"51,513.00"}]
[157,"LUCIA MERCEDES","MARIA ALMANZAR","F","REGION 4","SANTIAGO RODRIGUEZ","HOSPITAL PROVINCIAL  GENERAL SANTIAGO RODRIGUEZ","ENCARGADO (A) UNIDAD DE GESTION FINANCIERA Y ADMINISTRATIVA","ADMINISTRATIVO",{"v":95000,"d":"95,000.00"}]
[158,"ANGELA DE LA CRUZ","PEREZ DE MONCION","F","REGION 4","SANTIAGO RODRIGUEZ","HOSPITAL PROVINCIAL  GENERAL SANTIAGO RODRIGUEZ","ENCARGADO (A) DE RECURSOS HUMANOS","ADMINISTRATIVO",{"v":75000,"d":"75,000.00"}]
[159,"ERLIN ANDRALYS","BOURDIERD REYES","F","REGION 4","SANTIAGO RODRIGUEZ","HOSPITAL PROVINCIAL  GENERAL SANTIAGO RODRIGUEZ","ENCARGADO DE ATENCION AL USUARIO","ADMINISTRATIVO",{"v":30000,"d":"30,000.00"}]
[160,"CARMEN ROSA","RODRIGUEZ FERNANDEZ","F","REGION 4","SANTIAGO RODRIGUEZ","HOSPITAL PROVINCIAL  GENERAL SANTIAGO RODRIGUEZ","ENCARGADO(A) DE CUIDADOS AMBULATORIO","MEDICOS C/CARGOS ADMINISTRATIVO",{"v":58000,"d":"58,000.00"}]
[161,"GLADYS MERCEDES","PERALTA GUZMAN DE PERALTA","F","REGION 4","SANTIAGO RODRIGUEZ","HOSPITAL PROVINCIAL  GENERAL SANTIAGO RODRIGUEZ","ENCARGADO(A) UNIDAD DE POLITICAS Y PLANIFICACION","ADMINISTRATIVO",{"v":75000,"d":"75,000.00"}]
[162,"YAMILETH MERCEDES","ESTRELLA","F","REGION 4","SANTIAGO RODRIGUEZ","HOSPITAL PROVINCIAL  GENERAL SANTIAGO RODRIGUEZ","RESPONSABLE DE LIBRE ACCESO A LA INFORMACION","ADMINISTRATIVO",{"v":60000,"d":"60,000.00"}]
[163,"DULMARIS","TORRES DE JIMENEZ","F","REGION 4","SANTIAGO RODRIGUEZ","HOSPITAL PROVINCIAL  GENERAL SANTIAGO RODRIGUEZ","ENFERMERO (A) ATENCION DIRECTA","ENFERMERAS GRADUADAS",{"v":52379,"d":"52,379.00"}]
[164,"MARBELIS ANGELINA","CESPEDES RODRIGUEZ","F","REGION 4","SANTIAGO RODRIGUEZ","HOSPITAL PROVINCIAL  GENERAL SANTIAGO RODRIGUEZ","ENFERMERO (A) ATENCION DIRECTA","ENFERMERAS GRADUADAS",{"v":52379,"d":"52,379.00"}]
[165,"JOSE DOMINGO","CABRERA BAEZ","M","REGION 4","SANTIAGO RODRIGUEZ","HOSPITAL PROVINCIAL  GENERAL SANTIAGO RODRIGUEZ","ENFERMERO (A) ATENCION DIRECTA","ENFERMERAS GRADUADAS",{"v":52379,"d":"52,379.00"}]
[166,"VIVIAN DE LOS ANGELES","FAMILIA VARGAS","F","REGION 4","SANTIAGO RODRIGUEZ","HOSPITAL PROVINCIAL  GENERAL SANTIAGO RODRIGUEZ","ENFERMERO (A) ATENCION DIRECTA","ENFERMERAS GRADUADAS",{"v":52379,"d":"52,379.00"}]
[167,"SABRINA ISELA","SOSA VELEZ DE CABREJA","F","REGION 4","SANTIAGO RODRIGUEZ","HOSPITAL PROVINCIAL  GENERAL SANTIAGO RODRIGUEZ","ENFERMERO (A) ATENCION DIRECTA","ENFERMERAS GRADUADAS",{"v":52379,"d":"52,379.00"}]
[168,"ELVIRA MERCEDES","ESPINAL RODRIGUEZ","F","REGION 4","SANTIAGO RODRIGUEZ","HOSPITAL PROVINCIAL  GENERAL SANTIAGO RODRIGUEZ","ENFERMERO (A) III","ENFERMERAS GRADUADAS",{"v":52379,"d":"52,379.00"}]
[169,"ERLIN ANDRALYS","ESTEVEZ DE PARALTA","F","REGION 4","SANTIAGO RODRIGUEZ","HOSPITAL PROVINCIAL  GENERAL SANTIAGO RODRIGUEZ","ENFERMERO (A) I","ENFERMERAS GRADUADAS",{"v":52379,"d":"52,379.00"}]
[170,"ANA ROSA","UCETA PERALTA","F","REGION 4","SANTIAGO RODRIGUEZ","HOSPITAL PROVINCIAL  GENERAL SANTIAGO RODRIGUEZ","ENFERMERO (A) ATENCION DIRECTA","ENFERMERAS GRADUADAS",{"v":52379,"d":"52,379.00"}]
[171,"MAXIMA MARIA","RAMOS","F","REGION 4","SANTIAGO RODRIGUEZ","HOSPITAL PROVINCIAL  GENERAL SANTIAGO RODRIGUEZ","ENFERMERO (A) ATENCION DIRECTA","ENFERMERAS GRADUADAS",{"v":52379,"d":"52,379.00"}]
[172,"MARGARITA DE JESUS","PERALTA SANTOS","F","REGION 4","SANTIAGO RODRIGUEZ","HOSPITAL PROVINCIAL  GENERAL SANTIAGO RODRIGUEZ","ENFERMERO (A) I","ENFERMERAS GRADUADAS",{"v":52379,"d":"52,379.00"}]
[173,"MARTINA YANINA","FRANCO GARCIA","F","REGION 4","SANTIAGO RODRIGUEZ","HOSPITAL PROVINCIAL  GENERAL SANTIAGO RODRIGUEZ","ENFERMERO (A) ATENCION DIRECTA","ENFERMERAS GRADUADAS",{"v":52379,"d":"52,379.00"}]
[174,"INGRID ALTAGRACIA","ESTEVEZ TEJADA","F","REGION 4","SANTIAGO RODRIGUEZ","HOSPITAL PROVINCIAL  GENERAL SANTIAGO RODRIGUEZ","ENFERMERO (A) ATENCION DIRECTA","ENFERMERAS GRADUADAS",{"v":52379,"d":"52,379.00"}]
[175,"ROSA MERCEDES","ALMANZAR RODRIGUEZ","F","REGION 4","SANTIAGO RODRIGUEZ","HOSPITAL PROVINCIAL  GENERAL SANTIAGO RODRIGUEZ","ENFERMERO (A) ATENCION DIRECTA","ENFERMERAS GRADUADAS",{"v":52379,"d":"52,379.00"}]
[176,"MIGUELANNY ALTAGRACIA","HICIANO RODRIGUEZ","F","REGION 4","SANTIAGO RODRIGUEZ","HOSPITAL PROVINCIAL  GENERAL SANTIAGO RODRIGUEZ","ENFERMERO (A) ATENCION DIRECTA","ENFERMERAS GRADUADAS",{"v":52379,"d":"52,379.00"}]
[177,"FRANCHESKA MIGUELINA","HERNANDEZ TORIBIO","F","REGION 4","SANTIAGO RODRIGUEZ","HOSPITAL PROVINCIAL  GENERAL SANTIAGO RODRIGUEZ","ENFERMERO (A) ATENCION DIRECTA","ENFERMERAS GRADUADAS",{"v":52379,"d":"52,379.00"}]
[178,"MARTHA DE JESUS","BAEZ TEJADA","F","REGION 4","SANTIAGO RODRIGUEZ","HOSPITAL PROVINCIAL  GENERAL SANTIAGO RODRIGUEZ","ENFERMERO (A) ATENCION DIRECTA","ENFERMERAS GRADUADAS",{"v":52379,"d":"52,379.00"}]
[179,"RAMIRY DE LOS SANTOS","ESTEVEZ DOMINGUEZ","F","REGION 4","SANTIAGO RODRIGUEZ","HOSPITAL PROVINCIAL  GENERAL SANTIAGO RODRIGUEZ","ENFERMERO (A) ATENCION DIRECTA","ENFERMERAS GRADUADAS",{"v":52379,"d":"52,379.00"}]
[180,"ELIZABETH","ALMONTE VALERIO","F","REGION 4","SANTIAGO RODRIGUEZ","HOSPITAL PROVINCIAL  GENERAL SANTIAGO RODRIGUEZ","ENFERMERO (A) ATENCION DIRECTA","ENFERMERAS GRADUADAS",{"v":52379,"d":"52,379.00"}]
[181,"EMELIA ALTAGRACIA","REYES","F","REGION 4","SANTIAGO RODRIGUEZ","HOSPITAL PROVINCIAL  GENERAL SANTIAGO RODRIGUEZ","ENFERMERO (A)","ENFERMERAS GRADUADAS",{"v":52379,"d":"52,379.00"}]
[182,"FIORDALIZA ALTAGRACIA","SOLANO NUÑEZ","F","REGION 4","SANTIAGO RODRIGUEZ","HOSPITAL PROVINCIAL  GENERAL SANTIAGO RODRIGUEZ","ENFERMERO (A) ATENCION DIRECTA","ENFERMERAS GRADUADAS",{"v":52379,"d":"52,379.00"}]
[183,"MARILENNY","CONTRERAS DE APOLINAR","F","REGION 4","SANTIAGO RODRIGUEZ","HOSPITAL PROVINCIAL  GENERAL SANTIAGO RODRIGUEZ","ENFERMERO (A) ATENCION DIRECTA","ENFERMERAS GRADUADAS",{"v":52379,"d":"52,379.00"}]
[184,"AMPARO","PERALTA DISLA","F","REGION 4","SANTIAGO RODRIGUEZ","HOSPITAL PROVINCIAL  GENERAL SANTIAGO RODRIGUEZ","ENFERMERO (A) ATENCION DIRECTA","ENFERMERAS GRADUADAS",{"v":52379,"d":"52,379.00"}]
[185,"ROSANNY ARIBEL","ESPINAL ESPINAL","F","REGION 4","SANTIAGO RODRIGUEZ","HOSPITAL PROVINCIAL  GENERAL SANTIAGO RODRIGUEZ","ENFERMERO (A) ATENCION DIRECTA","ENFERMERAS GRADUADAS",{"v":52379,"d":"52,379.00"}]
[186,"MELVIN DE JESUS","DURAN DURAN","M","REGION 4","SANTIAGO RODRIGUEZ","HOSPITAL PROVINCIAL  GENERAL SANTIAGO RODRIGUEZ","ENFERMERO (A) ATENCION DIRECTA","ENFERMERAS GRADUADAS",{"v":52379,"d":"52,379.00"}]
[187,"JULIANNY PAOLA","ALMONTE LECLERC","F","REGION 4","SANTIAGO RODRIGUEZ","HOSPITAL PROVINCIAL  GENERAL SANTIAGO RODRIGUEZ","ENFERMERO (A) ATENCION DIRECTA","ENFERMERAS GRADUADAS",{"v":52379,"d":"52,379.00"}]
[188,"ANIBELKA DEL CARMEN","VARGAS","F","REGION 4","SANTIAGO RODRIGUEZ","HOSPITAL PROVINCIAL  GENERAL SANTIAGO RODRIGUEZ","ENFERMERO (A) ATENCION DIRECTA","ENFERMERAS GRADUADAS",{"v":52379,"d":"52,379.00"}]
[189,"ABELINA","VALERIO DE CABRERA","F","REGION 4","SANTIAGO RODRIGUEZ","HOSPITAL PROVINCIAL  GENERAL SANTIAGO RODRIGUEZ","ENFERMERO (A) ATENCION DIRECTA","ENFERMERAS GRADUADAS",{"v":52379,"d":"52,379.00"}]
[190,"JUANA HANYELINA","JIMENEZ","F","REGION 4","SANTIAGO RODRIGUEZ","HOSPITAL PROVINCIAL  GENERAL SANTIAGO RODRIGUEZ","ENFERMERA ATENCION DIRECTA","ENFERMERAS GRADUADAS",{"v":52379,"d":"52,379.00"}]
[191,"ELY INES ","CASTILLO SAINT-HILAIRE","F","REGION 4","SANTIAGO RODRIGUEZ","HOSPITAL PROVINCIAL  GENERAL SANTIAGO RODRIGUEZ","ENFERMERA ATENCION DIRECTA","ENFERMERAS GRADUADAS",{"v":52379,"d":"52,379.00"}]
[192,"YOLANNI LISVET","CAMPOS MERCEDES","F","REGION 4","SANTIAGO RODRIGUEZ","HOSPITAL PROVINCIAL  GENERAL SANTIAGO RODRIGUEZ","ENFERMERA ATENCION DIRECTA","ENFERMERAS GRADUADAS",{"v":52379,"d":"52,379.00"}]
[193,"MARIELA","CAPURRO MUSA","F","REGION 4","SANTIAGO RODRIGUEZ","HOSPITAL PROVINCIAL  GENERAL SANTIAGO RODRIGUEZ","FARMACEUTICO (A)","FARMACEUTICOS",{"v":53707,"d":"53,707.00"}]
[194,"FRANCELINA ENEMENCIA ","RODRIGUEZ VALERIO","F","REGION 4","SANTIAGO RODRIGUEZ","HOSPITAL PROVINCIAL  GENERAL SANTIAGO RODRIGUEZ","FARMACEUTICO (A)","FARMACEUTICOS",{"v":53707,"d":"53,707.00"}]
[{"$f":"1+A201","v":195},"LAUREN ANOMIS","PAULINO CANAAN","F","REGION 4","SANTIAGO RODRIGUEZ","HOSPITAL PROVINCIAL  GENERAL SANTIAGO RODRIGUEZ","FARMACEUTICO (A)","FARMACEUTICOS",{"v":53707,"d":"53,707.00"}]
[196,"JOSE","JIMENEZ RAMIREZ","M","REGION 4","SANTIAGO RODRIGUEZ","HOSPITAL PROVINCIAL  GENERAL SANTIAGO RODRIGUEZ","GESTOR DE REDES SOCIALES","ADMINISTRATIVO",{"v":25000,"d":"25,000.00"}]
[197,"JUANA GABRIELA","CASTRO HIDALGO","F","REGION 4","SANTIAGO RODRIGUEZ","HOSPITAL PROVINCIAL  GENERAL SANTIAGO RODRIGUEZ","GERIATRA","MEDICO ESPECIALISTA",{"v":88506,"d":"88,506.00"}]
[198,"FEDERICO DEL CARMEN","PERALTA GOMEZ","M","REGION 4","SANTIAGO RODRIGUEZ","HOSPITAL PROVINCIAL  GENERAL SANTIAGO RODRIGUEZ","JARDINERO","ADMINISTRATIVO",{"v":11000,"d":"11,000.00"}]
[199,"ELIAS RAFAEL","TINEO TORRES","M","REGION 4","SANTIAGO RODRIGUEZ","HOSPITAL PROVINCIAL  GENERAL SANTIAGO RODRIGUEZ","JARDINERO","ADMINISTRATIVO",{"v":14000,"d":"14,000.00"}]
[200,"DELFIN DE JESUS","RODRIGUEZ","M","REGION 4","SANTIAGO RODRIGUEZ","HOSPITAL PROVINCIAL  GENERAL SANTIAGO RODRIGUEZ","JARDINERO","ADMINISTRATIVO",{"v":10000,"d":"10,000.00"}]
[201,"LORENZO","DAMIAN","M","REGION 4","SANTIAGO RODRIGUEZ","HOSPITAL PROVINCIAL  GENERAL SANTIAGO RODRIGUEZ","JARDINERO","ADMINISTRATIVO",{"v":11000,"d":"11,000.00"}]
[202,"MARIA JOSEFINA","MARTINEZ LORA","F","REGION 4","SANTIAGO RODRIGUEZ","HOSPITAL PROVINCIAL  GENERAL SANTIAGO RODRIGUEZ","LAVANDERO (A)","ADMINISTRATIVO",{"v":11000,"d":"11,000.00"}]
[203,"SABINA DEL CARMEN","LAMI UCETA","F","REGION 4","SANTIAGO RODRIGUEZ","HOSPITAL PROVINCIAL  GENERAL SANTIAGO RODRIGUEZ","LAVANDERO (A)","ADMINISTRATIVO",{"v":14000,"d":"14,000.00"}]
[204,"CRISTINA MERCEDES","MEDRANO LIMA","F","REGION 5","SANTIAGO RODRIGUEZ","HOSPITAL PROVINCIAL  GENERAL SANTIAGO RODRIGUEZ","LAVANDERO (A)","ADMINISTRATIVO",{"v":14000,"d":"14,000.00"}]
[205,"ANA VICTORIA ","DE LEON DORSINE","F","REGION 4","SANTIAGO RODRIGUEZ","HOSPITAL PROVINCIAL  GENERAL SANTIAGO RODRIGUEZ","MEDICO AUDITOR","MEDICO ASISTENTE",{"v":82605,"d":"82,605.00"}]
[206,"ISMELDA ALTAGRACIA","NUÑEZ FERREIRAS","F","REGION 4","SANTIAGO RODRIGUEZ","HOSPITAL PROVINCIAL  GENERAL SANTIAGO RODRIGUEZ","MEDICO AUDITOR","MEDICO ASISTENTE",{"v":82605,"d":"82,605.00"}]
[207,"RAYMER ENMANUEL","PEREZ","M","REGION 4","SANTIAGO RODRIGUEZ","HOSPITAL PROVINCIAL  GENERAL SANTIAGO RODRIGUEZ","MEDICO AUDITOR","MEDICO ASISTENTE",{"v":82605,"d":"82,605.00"}]
[208,"YNES ALTAGRACIA","CASTILLO CRUZADO","F","REGION 4","SANTIAGO RODRIGUEZ","HOSPITAL PROVINCIAL  GENERAL SANTIAGO RODRIGUEZ","MEDICO AYUDANTE DE ANESTESIOLOGIA","MEDICO ESPECIALISTA",{"v":88506,"d":"88,506.00"}]
[209,"WILTON DE JESUS","GARCIA VASQUEZ","M","REGION 4","SANTIAGO RODRIGUEZ","HOSPITAL PROVINCIAL  GENERAL SANTIAGO RODRIGUEZ","MEDICO ANESTESIOLOGO","MEDICO ESPECIALISTA",{"v":88506,"d":"88,506.00"}]
[210,"AURY AMANDA","ARROYO ARLEQUIN","F","REGION 4","SANTIAGO RODRIGUEZ","HOSPITAL PROVINCIAL  GENERAL SANTIAGO RODRIGUEZ","MEDICO ANESTESIOLOGO","MEDICO ESPECIALISTA",{"v":88506,"d":"88,506.00"}]
[211,"LUZ IVERNIA","HERRERA","F","REGION 4","SANTIAGO RODRIGUEZ","HOSPITAL PROVINCIAL  GENERAL SANTIAGO RODRIGUEZ","MEDICO ANESTESIOLOGO","MEDICO ESPECIALISTA",{"v":88506,"d":"88,506.00"}]
[212,"BERTHA LIDIA","AQUINO RAMOS","F","REGION 4","SANTIAGO RODRIGUEZ","HOSPITAL PROVINCIAL  GENERAL SANTIAGO RODRIGUEZ","MEDICO AYUDANTE DE ANESTESIOLOGIA","MEDICO ESPECIALISTA",{"v":88506,"d":"88,506.00"}]
[213,"ENERSIDA ALTAGRACIA","ORTEGA GUZMAN","F","REGION 4","SANTIAGO RODRIGUEZ","HOSPITAL PROVINCIAL  GENERAL SANTIAGO RODRIGUEZ","MEDICO AYUDANTE DE ANESTESIOLOGIA","MEDICO ESPECIALISTA",{"v":88506,"d":"88,506.00"}]
[214,"FREDDY WALDISTRUDIS","CORONADO GARCIA","M","REGION 4","SANTIAGO RODRIGUEZ","HOSPITAL PROVINCIAL  GENERAL SANTIAGO RODRIGUEZ","MEDICO JEFE SERV. DE MEDICINA INTERNA","JEFE DE SERVICIO",{"v":98175,"d":"98,175.00"}]
[215,"MARIA YUDERCA","PERALTA UCETA","F","REGION 4","SANTIAGO RODRIGUEZ","HOSPITAL PROVINCIAL  GENERAL SANTIAGO RODRIGUEZ","MEDICO AYUD.DE MEDICINA INTERNA Y GASTROENTEROLOGIA","MEDICO ESPECIALISTA",{"v":88506,"d":"88,506.00"}]
[216,"YUDYSSA ZORAIDA DEL CARMEN","REYES INOA","F","REGION 4","SANTIAGO RODRIGUEZ","HOSPITAL PROVINCIAL  GENERAL SANTIAGO RODRIGUEZ","MEDICO AYUDANTE DE MEDICINA INTERNA","MEDICO ESPECIALISTA",{"v":88506,"d":"88,506.00"}]
[217,"ELBIA LILIANA","ALMANZAR VALERIO","F","REGION 4","SANTIAGO RODRIGUEZ","HOSPITAL PROVINCIAL  GENERAL SANTIAGO RODRIGUEZ","MEDICO INTERNISTA","MEDICO ESPECIALISTA",{"v":88506,"d":"88,506.00"}]
[218,"ENGELRS FRANCISCO","MARTE PERALTA","M","REGION 4","SANTIAGO RODRIGUEZ","HOSPITAL PROVINCIAL  GENERAL SANTIAGO RODRIGUEZ","MEDICO AYUDANTE DE MEDICINA INTERNA","MEDICO ESPECIALISTA",{"v":88506,"d":"88,506.00"}]
[219,"MICHEL AYMEE","JIMENEZ LORA","F","REGION 4","SANTIAGO RODRIGUEZ","HOSPITAL PROVINCIAL  GENERAL SANTIAGO RODRIGUEZ","MEDICO INTERNISTA","MEDICO ESPECIALISTA",{"v":88506,"d":"88,506.00"}]
[220,"JOHANKA NINOSKA","PERALTA PERALTA","F","REGION 4","SANTIAGO RODRIGUEZ","HOSPITAL PROVINCIAL  GENERAL SANTIAGO RODRIGUEZ","MEDICO INTERNISTA","MEDICO ESPECIALISTA",{"v":88506,"d":"88,506.00"}]
[221,"MASSIEL ESTHER","SANTANA CASTILLO","F","REGION 4","SANTIAGO RODRIGUEZ","HOSPITAL PROVINCIAL  GENERAL SANTIAGO RODRIGUEZ","MEDICO INTERNISTA","MEDICO ESPECIALISTA",{"v":88506,"d":"88,506.00"}]
[222,"GIOVAMNY DE JESUS","BERNARD MARTE","M","REGION 4","SANTIAGO RODRIGUEZ","HOSPITAL PROVINCIAL  GENERAL SANTIAGO RODRIGUEZ","MEDICO JEFE SERV. CIRUGIA","JEFE DE SERVICIO",{"v":98175,"d":"98,175.00"}]
[223,"MARLENI","TAVERAS PEÑA","F","REGION 4","SANTIAGO RODRIGUEZ","HOSPITAL PROVINCIAL  GENERAL SANTIAGO RODRIGUEZ","MEDICO CIRUJANO","MEDICO ESPECIALISTA",{"v":88506,"d":"88,506.00"}]
[224,"DARWIN AMBIORIS","RAMOS GENERE","M","REGION 4","SANTIAGO RODRIGUEZ","HOSPITAL PROVINCIAL  GENERAL SANTIAGO RODRIGUEZ","MEDICO CIRUJANO","MEDICO ESPECIALISTA",{"v":88506,"d":"88,506.00"}]
[225,"CARLOS DE JESUS","FERNANDEZ RODRIGUEZ","M","REGION 4","SANTIAGO RODRIGUEZ","HOSPITAL PROVINCIAL  GENERAL SANTIAGO RODRIGUEZ","MEDICO CIRUJANO","MEDICO ESPECIALISTA",{"v":88506,"d":"88,506.00"}]
[226,"MARDELIN DEL CARMEN","TORRES DIAZ","F","REGION 4","SANTIAGO RODRIGUEZ","HOSPITAL PROVINCIAL  GENERAL SANTIAGO RODRIGUEZ","MEDICO CIRUJANO GENERAL","MEDICO ESPECIALISTA",{"v":88506,"d":"88,506.00"}]
[227,"ELENISA ","FERNANDEZ CABRERA","F","REGION 4","SANTIAGO RODRIGUEZ","HOSPITAL PROVINCIAL  GENERAL SANTIAGO RODRIGUEZ","MEDICO GASTROENTEROLOGA","MEDICO ESPECIALISTA",{"v":88506,"d":"88,506.00"}]
[228,"KIELY DE JESUS ","POLANCO POLANCO","M","REGION 4","SANTIAGO RODRIGUEZ","HOSPITAL PROVINCIAL  GENERAL SANTIAGO RODRIGUEZ","MEDICO OTORRINOLARINGOLOGO","MEDICO ESPECIALISTA",{"v":88506,"d":"88,506.00"}]
[229,"DENISSE MICHELLE","MARTINEZ MELLA DE PEREZ","F","REGION 4","SANTIAGO RODRIGUEZ","HOSPITAL PROVINCIAL  GENERAL SANTIAGO RODRIGUEZ","MEDICO DIABETOLOGA","MEDICO ESPECIALISTA",{"v":88506,"d":"88,506.00"}]
[230,"WALDY NOEL","VERAS ALMONTE","M","REGION 4","SANTIAGO RODRIGUEZ","HOSPITAL PROVINCIAL  GENERAL SANTIAGO RODRIGUEZ","MEDICO CIRUJANO","MEDICO ESPECIALISTA",{"v":88506,"d":"88,506.00"}]
[231,"MILKEYA","RAMIREZ","F","REGION 4","SANTIAGO RODRIGUEZ","HOSPITAL PROVINCIAL  GENERAL SANTIAGO RODRIGUEZ","MEDICO JEFE SERV. DE GINECO-OBSTETRA","JEFE DE SERVICIO",{"v":98175,"d":"98,175.00"}]
[232,"JESUS MANUEL","GONZALEZ HERNANDEZ","M","REGION 4","SANTIAGO RODRIGUEZ","HOSPITAL PROVINCIAL  GENERAL SANTIAGO RODRIGUEZ","MEDICO GINECO-OBSTETRA","MEDICO ESPECIALISTA",{"v":88506,"d":"88,506.00"}]
[233,"BLAS HIPOLITO","SOSA GOMEZ","M","REGION 4","SANTIAGO RODRIGUEZ","HOSPITAL PROVINCIAL  GENERAL SANTIAGO RODRIGUEZ","MEDICO GINECO-OBSTETRA","MEDICO ESPECIALISTA",{"v":88506,"d":"88,506.00"}]
[234,"YARITZA GUILLERMINA","TAVAREZ BLANCO","F","REGION 4","SANTIAGO RODRIGUEZ","HOSPITAL PROVINCIAL  GENERAL SANTIAGO RODRIGUEZ","MEDICO GINECO-OBSTETRA","MEDICO ESPECIALISTA",{"v":88506,"d":"88,506.00"}]
[235,"CESAR OCTAVIO","ABREU VIALET","M","REGION 4","SANTIAGO RODRIGUEZ","HOSPITAL PROVINCIAL  GENERAL SANTIAGO RODRIGUEZ","MEDICO GINECO-OBSTETRA","MEDICO ESPECIALISTA",{"v":88506,"d":"88,506.00"}]
[236,"SONIA PAOLA","GOMEZ ROSARIO","F","REGION 4","SANTIAGO RODRIGUEZ","HOSPITAL PROVINCIAL  GENERAL SANTIAGO RODRIGUEZ","MEDICO GINECO-OBSTETRA","MEDICO ESPECIALISTA",{"v":88506,"d":"88,506.00"}]
[237,"MARITZA DOLORES","CABRERA","F","REGION 4","SANTIAGO RODRIGUEZ","HOSPITAL PROVINCIAL  GENERAL SANTIAGO RODRIGUEZ","MEDICO AYUDANTE DE GINECOLOGIA","MEDICO ESPECIALISTA",{"v":88506,"d":"88,506.00"}]
[238,"ESMELDY MAURICIO","JIMENEZ TORREZ","M","REGION 4","SANTIAGO RODRIGUEZ","HOSPITAL PROVINCIAL  GENERAL SANTIAGO RODRIGUEZ","MEDICO AYUDANTE DE GINECO-OBSTETRA","MEDICO ESPECIALISTA",{"v":88506,"d":"88,506.00"}]
[239,"ISIDRO ARTURO","HERNANDEZ TUEROS","M","REGION 4","SANTIAGO RODRIGUEZ","HOSPITAL PROVINCIAL  GENERAL SANTIAGO RODRIGUEZ","MEDICO AYUDANTE DE GINECOLOGIA","MEDICO ESPECIALISTA",{"v":88506,"d":"88,506.00"}]
[240,"TOMAS","MARTINEZ REYES","M","REGION 4","SANTIAGO RODRIGUEZ","HOSPITAL PROVINCIAL  GENERAL SANTIAGO RODRIGUEZ","MEDICO JEFE SERV. DE ORTOPEDIA Y TRAUMATOLOGIA","JEFE DE SERVICIO",{"v":98175,"d":"98,175.00"}]
[241,"MARTIN RAFAEL","TEJADA REYES","M","REGION 4","SANTIAGO RODRIGUEZ","HOSPITAL PROVINCIAL  GENERAL SANTIAGO RODRIGUEZ","MEDICO AYUDANTE DE CIRUGIA DE ORTOPEDIA Y TRAUMATOLOGIA","MEDICO ESPECIALISTA",{"v":88506,"d":"88,506.00"}]
[242,"MICHEL ANTONIO","CRUZ","M","REGION 4","SANTIAGO RODRIGUEZ","HOSPITAL PROVINCIAL  GENERAL SANTIAGO RODRIGUEZ","MEDICO ORTOPEDA","MEDICO ESPECIALISTA",{"v":88506,"d":"88,506.00"}]
[243,"ANDERSON ","MINAYA FRANCISCO","M","REGION 4","SANTIAGO RODRIGUEZ","HOSPITAL PROVINCIAL  GENERAL SANTIAGO RODRIGUEZ","MEDICO ORTOPEDA","MEDICO ESPECIALISTA",{"v":88506,"d":"88,506.00"}]
[244,"RAFAEL ANTONIO","QUEZADA MONEGRO","M","REGION 4","SANTIAGO RODRIGUEZ","HOSPITAL PROVINCIAL  GENERAL SANTIAGO RODRIGUEZ","MEDICO AYUDANTE DE ORTOPEDIA Y TRAUMATOLOGIA","MEDICO ESPECIALISTA",{"v":88506,"d":"88,506.00"}]
[245,"JOSE","RODRIGUEZ DISLA","M","REGION 4","SANTIAGO RODRIGUEZ","HOSPITAL PROVINCIAL  GENERAL SANTIAGO RODRIGUEZ","MEDICO JEFE SERV. DE PEDIATRIA","JEFE DE SERVICIO",{"v":98175,"d":"98,175.00"}]
[246,"ROSA DOLORES","BUENO JIMENEZ","F","REGION 4","SANTIAGO RODRIGUEZ","HOSPITAL PROVINCIAL  GENERAL SANTIAGO RODRIGUEZ","MEDICO AYUDANTE DE PEDIATRIA","MEDICO ESPECIALISTA",{"v":88506,"d":"88,506.00"}]
[247,"LUCRECIA DEL CARMEN","MERCADO CARRERA","F","REGION 4","SANTIAGO RODRIGUEZ","HOSPITAL PROVINCIAL  GENERAL SANTIAGO RODRIGUEZ","MEDICO PEDIATRA","MEDICO ESPECIALISTA",{"v":88506,"d":"88,506.00"}]
[248,"ARELIS YOCARIS","ALMANZAR RODRIGUEZ","F","REGION 4","SANTIAGO RODRIGUEZ","HOSPITAL PROVINCIAL  GENERAL SANTIAGO RODRIGUEZ","MEDICO PEDIATRA","MEDICO ESPECIALISTA",{"v":88506,"d":"88,506.00"}]
[249,"PEDRO MANUEL","REYES TORRES","M","REGION 4","SANTIAGO RODRIGUEZ","HOSPITAL PROVINCIAL  GENERAL SANTIAGO RODRIGUEZ","MEDICO PEDIATRA","MEDICO ESPECIALISTA",{"v":88506,"d":"88,506.00"}]
[250,"MELISA","MARTE ESTEVEZ","F","REGION 4","SANTIAGO RODRIGUEZ","HOSPITAL PROVINCIAL  GENERAL SANTIAGO RODRIGUEZ","MEDICO PEDIATRA","MEDICO ESPECIALISTA",{"v":88506,"d":"88,506.00"}]
[251,"YINA GERMANIA","RODRIGUEZ OLIVO","F","REGION 4","SANTIAGO RODRIGUEZ","HOSPITAL PROVINCIAL  GENERAL SANTIAGO RODRIGUEZ","MEDICO PEDIATRA","MEDICO ESPECIALISTA",{"v":88506,"d":"88,506.00"}]
[252,"DAYSI EFREW","MENDEZ ORTIZ","F","REGION 4","SANTIAGO RODRIGUEZ","HOSPITAL PROVINCIAL  GENERAL SANTIAGO RODRIGUEZ","MEDICO GENERAL","MEDICO ASISTENTE",{"v":82605,"d":"82,605.00"}]
[253,"INGRID EVELINA","BUENO ALCEQUIEZ","F","REGION 4","SANTIAGO RODRIGUEZ","HOSPITAL PROVINCIAL  GENERAL SANTIAGO RODRIGUEZ","MEDICO GENERAL","MEDICO ASISTENTE",{"v":82605,"d":"82,605.00"}]
[254,"YSABEL MARIA","RODRIGUEZ TORRES","F","REGION 4","SANTIAGO RODRIGUEZ","HOSPITAL PROVINCIAL  GENERAL SANTIAGO RODRIGUEZ","MEDICO GENERAL","MEDICO ASISTENTE",{"v":82605,"d":"82,605.00"}]
[255,"TITO","ESTEVEZ FORTUNA","M","REGION 4","SANTIAGO RODRIGUEZ","HOSPITAL PROVINCIAL  GENERAL SANTIAGO RODRIGUEZ","MEDICO GENERAL","MEDICO ASISTENTE",{"v":82605,"d":"82,605.00"}]
[256,"WANDA YASMIN","VENTURA BATISTA DE PAULINO","F","REGION 4","SANTIAGO RODRIGUEZ","HOSPITAL PROVINCIAL  GENERAL SANTIAGO RODRIGUEZ","MEDICO GENERAL","MEDICO ASISTENTE",{"v":82605,"d":"82,605.00"}]
[257,"MATHIUS JOSE","FERNANDEZ CAPELLAN","M","REGION 4","SANTIAGO RODRIGUEZ","HOSPITAL PROVINCIAL  GENERAL SANTIAGO RODRIGUEZ","MEDICO UROLOGO","MEDICO ESPECIALISTA",{"v":88506,"d":"88,506.00"}]
[258,"IVETTE GISSELLE","REYES TAVERAS","F","REGION 4","SANTIAGO RODRIGUEZ","HOSPITAL PROVINCIAL  GENERAL SANTIAGO RODRIGUEZ","MEDICO GENERAL","MEDICO ASISTENTE",{"v":82605,"d":"82,605.00"}]
[{"$f":"1+A265","v":259},"JOSE ANTONIO","JIMENEZ GOMEZ","M","REGION 4","SANTIAGO RODRIGUEZ","HOSPITAL PROVINCIAL  GENERAL SANTIAGO RODRIGUEZ","MEDICO GENERAL","MEDICO ASISTENTE",{"v":82605,"d":"82,605.00"}]
[260,"ELBI RAFAEL","LAMI GARCIA","M","REGION 4","SANTIAGO RODRIGUEZ","HOSPITAL PROVINCIAL  GENERAL SANTIAGO RODRIGUEZ","MEDICO GENERAL","MEDICO ASISTENTE",{"v":82605,"d":"82,605.00"}]
[261,"ALGELIS JISSELLY","CHAVEZ DE PEÑA","F","REGION 4","SANTIAGO RODRIGUEZ","HOSPITAL PROVINCIAL  GENERAL SANTIAGO RODRIGUEZ","MEDICO GENERAL","MEDICO ASISTENTE",{"v":82605,"d":"82,605.00"}]
[262,"PEDRO JOSE","JIMENEZ RODRIGUEZ","M","REGION 4","SANTIAGO RODRIGUEZ","HOSPITAL PROVINCIAL  GENERAL SANTIAGO RODRIGUEZ","MEDICO NUTRIOLOGO","MEDICO ESPECIALISTA",{"v":88506,"d":"88,506.00"}]
[263,"BELGICA ALTAGRACIA","GUTIERREZ PILARTE","F","REGION 4","SANTIAGO RODRIGUEZ","HOSPITAL PROVINCIAL  GENERAL SANTIAGO RODRIGUEZ","MEDICO GENERAL","MEDICO ASISTENTE",{"v":82605,"d":"82,605.00"}]
[264,"PEDRO LUIS","JIMENEZ RODRIGUEZ","M","REGION 4","SANTIAGO RODRIGUEZ","HOSPITAL PROVINCIAL  GENERAL SANTIAGO RODRIGUEZ","MEDICO GENERAL","MEDICO ASISTENTE",{"v":82605,"d":"82,605.00"}]
[265,"DELVIA ANTONIA","BAEZ TORRES","F","REGION 4","SANTIAGO RODRIGUEZ","HOSPITAL PROVINCIAL  GENERAL SANTIAGO RODRIGUEZ","MEDICO GENERAL","MEDICO GENERAL",{"v":82605,"d":"82,605.00"}]
[266,"DARILIS ANABEL","DIAZ CASTILLO","F","REGION 4","SANTIAGO RODRIGUEZ","HOSPITAL PROVINCIAL  GENERAL SANTIAGO RODRIGUEZ","MEDICO GENERAL","MEDICO ASISTENTE",{"v":82605,"d":"82,605.00"}]
[267,"ANNY ELIZABETH","GOMEZ ROSARIO","F","REGION 4","SANTIAGO RODRIGUEZ","HOSPITAL PROVINCIAL  GENERAL SANTIAGO RODRIGUEZ","MEDICO GENERAL","MEDICO ASISTENTE",{"v":82605,"d":"82,605.00"}]
[268,"GISELA EMILIA","TEJEDA SANTANA","F","REGION 4","SANTIAGO RODRIGUEZ","HOSPITAL PROVINCIAL  GENERAL SANTIAGO RODRIGUEZ","MEDICO GENERAL","MEDICO ASISTENTE",{"v":82605,"d":"82,605.00"}]
[269,"KATHERINE FRANCISCA","ECHAVARRIA TAVERA","F","REGION 4","SANTIAGO RODRIGUEZ","HOSPITAL PROVINCIAL  GENERAL SANTIAGO RODRIGUEZ","MEDICO GENERAL","MEDICO ASISTENTE",{"v":82605,"d":"82,605.00"}]
[270,"DAMARIS JOSEFINA","NOVAS ESPINAL","F","REGION 4","SANTIAGO RODRIGUEZ","HOSPITAL PROVINCIAL  GENERAL SANTIAGO RODRIGUEZ","SONOGRAFISTA","MEDICO ESPECIALISTA",{"v":88506,"d":"88,506.00"}]
[271,"NARHAYETT CIBELES","ESTEVEZ HOWLEY","F","REGION 4","SANTIAGO RODRIGUEZ","HOSPITAL PROVINCIAL  GENERAL SANTIAGO RODRIGUEZ","MEDICO GENERAL","MEDICO ASISTENTE",{"v":82605,"d":"82,605.00"}]
[272,"LORENZA LARISMAR","GOMEZ BOURDIERD","F","REGION 4","SANTIAGO RODRIGUEZ","HOSPITAL PROVINCIAL  GENERAL SANTIAGO RODRIGUEZ","MEDICO GENERAL","MEDICO ASISTENTE",{"v":82605,"d":"82,605.00"}]
[273,"MARITZA ARACELIS DE JESUS","JIMENEZ GOMEZ","F","REGION 4","SANTIAGO RODRIGUEZ","HOSPITAL PROVINCIAL  GENERAL SANTIAGO RODRIGUEZ","MEDICO GENERAL","MEDICO ASISTENTE",{"v":82605,"d":"82,605.00"}]
[274,"RAFAEL RICARDO","CANALDA TEJADA","M","REGION 4","SANTIAGO RODRIGUEZ","HOSPITAL PROVINCIAL  GENERAL SANTIAGO RODRIGUEZ","MEDICO GENERAL","MEDICO ASISTENTE",{"v":82605,"d":"82,605.00"}]
[275,"DIANA GRISMILDA","MINAYA PERALTA","F","REGION 4","SANTIAGO RODRIGUEZ","HOSPITAL PROVINCIAL  GENERAL SANTIAGO RODRIGUEZ","MEDICO GENERAL","MEDICO ASISTENTE",{"v":82605,"d":"82,605.00"}]
[276,"VICTOR JOSUE ","GENERE","M","REGION 4","SANTIAGO RODRIGUEZ","HOSPITAL PROVINCIAL  GENERAL SANTIAGO RODRIGUEZ","MEDICO GENERAL","MEDICO ASISTENTE",{"v":82605,"d":"82,605.00"}]
[277,"MARLEN","ALMANZAR GONZALEZ","F","REGION 4","SANTIAGO RODRIGUEZ","HOSPITAL PROVINCIAL  GENERAL SANTIAGO RODRIGUEZ","MEDICO GENERAL","MEDICO ASISTENTE",{"v":82605,"d":"82,605.00"}]
[278,"FREDDY WALDISTRUDIS","CORONADO ZORRILLA","M","REGION 4","SANTIAGO RODRIGUEZ","HOSPITAL PROVINCIAL  GENERAL SANTIAGO RODRIGUEZ","MEDICO GENERAL","MEDICO ASISTENTE",{"v":82605,"d":"82,605.00"}]
[279,"YELENNY ","ACOSTA DE REYES","F","REGION 4","SANTIAGO RODRIGUEZ","HOSPITAL PROVINCIAL  GENERAL SANTIAGO RODRIGUEZ","MEDICO GENERAL","MEDICO ASISTENTE",{"v":82605,"d":"82,605.00"}]
[280,"RADHAMEDILIS ESTEFANI ","ESTEVEZ VARGAS","F","REGION 4","SANTIAGO RODRIGUEZ","HOSPITAL PROVINCIAL  GENERAL SANTIAGO RODRIGUEZ","MEDICO GENERAL","MEDICO EPIDEMIOLOGA",{"v":88506,"d":"88,506.00"}]
[281,"TOMAS ALBERTO","FLEMING REYES","M","REGION 4","SANTIAGO RODRIGUEZ","HOSPITAL PROVINCIAL  GENERAL SANTIAGO RODRIGUEZ","MEDICO AYUDANTE DE UROLOGIA","MEDICO ESPECIALISTA",{"v":88506,"d":"88,506.00"}]
[282,"STEPHANY JOSEFINA","VENTURA REYES","F","REGION 4","SANTIAGO RODRIGUEZ","HOSPITAL PROVINCIAL  GENERAL SANTIAGO RODRIGUEZ","MEDICO CARDIOLOGIA","MEDICO ESPECIALISTA",{"v":88506,"d":"88,506.00"}]
[283,"OSIRIS ","FRANCO","M","REGION 4","SANTIAGO RODRIGUEZ","HOSPITAL PROVINCIAL  GENERAL SANTIAGO RODRIGUEZ","MEDICO CIRUJANO MUCO-MAXILO FACIAL","MEDICO ESPECIALISTA",{"v":88506,"d":"88,506.00"}]
[284,"MARLIN MARIEL","TAVAREZ CESPEDES","F","REGION 4","SANTIAGO RODRIGUEZ","HOSPITAL PROVINCIAL  GENERAL SANTIAGO RODRIGUEZ","MEDICO DERMATOLOGO","MEDICO ESPECIALISTA",{"v":88506,"d":"88,506.00"}]
[285,"NOEMI","MEJIA MORA","F","REGION 4","SANTIAGO RODRIGUEZ","HOSPITAL PROVINCIAL  GENERAL SANTIAGO RODRIGUEZ","MEDICO DERMATOLOGO","MEDICO ESPECIALISTA",{"v":88506,"d":"88,506.00"}]
[286,"EMMANUEL","TORRES LECLERC","M","REGION 4","SANTIAGO RODRIGUEZ","HOSPITAL PROVINCIAL  GENERAL SANTIAGO RODRIGUEZ","MEDICO DIABETOLOGA","MEDICO ESPECIALISTA",{"v":88506,"d":"88,506.00"}]
[287,"CARMEN DELIA","FERMIN DIFO","F","REGION 4","SANTIAGO RODRIGUEZ","HOSPITAL PROVINCIAL  GENERAL SANTIAGO RODRIGUEZ","MEDICO OFTALMOLOGO","MEDICO ESPECIALISTA",{"v":88506,"d":"88,506.00"}]
[288,"LUZ ESTHER","ESTEVEZ VARGAS","F","REGION 4","SANTIAGO RODRIGUEZ","HOSPITAL PROVINCIAL  GENERAL SANTIAGO RODRIGUEZ","MEDICO OFTALMOLOGO","MEDICO ESPECIALISTA",{"v":88506,"d":"88,506.00"}]
[289,"ALINA ELISA","GARCIA DIAZ","F","REGION 4","SANTIAGO RODRIGUEZ","HOSPITAL PROVINCIAL  GENERAL SANTIAGO RODRIGUEZ","MEDICO PASANTE DE POS-GRADO DE NEFROLOGIA","MEDICOS PASANTES DE POST-GRADO",{"v":88506,"d":"88,506.00"}]
[290,"MONICA JOHANDRA","MATEO FULCAR","F","REGION 4","SANTIAGO RODRIGUEZ","HOSPITAL PROVINCIAL  GENERAL SANTIAGO RODRIGUEZ","MEDICO RADIOLOGO","MEDICO ESPECIALISTA",{"v":88506,"d":"88,506.00"}]
[291,"QUIRINO ANTONIO","TEJADA NUÑEZ","M","REGION 4","SANTIAGO RODRIGUEZ","HOSPITAL PROVINCIAL  GENERAL SANTIAGO RODRIGUEZ","MEDICO RADIOLOGO","MEDICO ESPECIALISTA",{"v":98175,"d":"98,175.00"}]
[292,"ALEIDA","PEREZ DE LOS SANTOS","F","REGION 4","SANTIAGO RODRIGUEZ","HOSPITAL PROVINCIAL  GENERAL SANTIAGO RODRIGUEZ","MEDICO SONOGRAFISTA","MEDICO ESPECIALISTA",{"v":88506,"d":"88,506.00"}]
[293,"DORCA DAHIANA","REYES BOURDIERD","F","REGION 4","SANTIAGO RODRIGUEZ","HOSPITAL PROVINCIAL  GENERAL SANTIAGO RODRIGUEZ","MEDICO SONOGRAFISTA","MEDICO ESPECIALISTA",{"v":88506,"d":"88,506.00"}]
[294,"DORLOUESE","FLEURENA","F","REGION 4","SANTIAGO RODRIGUEZ","HOSPITAL PROVINCIAL  GENERAL SANTIAGO RODRIGUEZ","MEDICO SONOGRAFISTA","MEDICO ESPECIALISTA",{"v":88506,"d":"88,506.00"}]
[295,"FREDDY ARTURO","TEJADA  LEONARDO","M","REGION 4","SANTIAGO RODRIGUEZ","HOSPITAL PROVINCIAL  GENERAL SANTIAGO RODRIGUEZ","MEDICO SONOGRAFISTA","MEDICO ESPECIALISTA",{"v":88506,"d":"88,506.00"}]
[296,"NACYBELIS RAFAELINA","ESPINAL SANTOS","F","REGION 4","SANTIAGO RODRIGUEZ","HOSPITAL PROVINCIAL  GENERAL SANTIAGO RODRIGUEZ","ODONTOLOGO","ODONTOLOGIA",{"v":59665,"d":"59,665.00"}]
[297,"JULIA FARCONELI","PAULINO DE ROSARIO","F","REGION 4","SANTIAGO RODRIGUEZ","HOSPITAL PROVINCIAL  GENERAL SANTIAGO RODRIGUEZ","ODONTOLOGO","ODONTOLOGIA",{"v":59665,"d":"59,665.00"}]
[298,"GABRIEL ENMANUEL","HURTADO ESPINAL","M","REGION 4","SANTIAGO RODRIGUEZ","HOSPITAL PROVINCIAL  GENERAL SANTIAGO RODRIGUEZ","ODONTOLOGO","ODONTOLOGIA",{"v":59665,"d":"59,665.00"}]
[299,"YOANNY MERCEDES","RODRIGUEZ RODRIGUEZ","F","REGION 4","SANTIAGO RODRIGUEZ","HOSPITAL PROVINCIAL  GENERAL SANTIAGO RODRIGUEZ","ODONTOLOGO","ODONTOLOGIA",{"v":59665,"d":"59,665.00"}]
[300,"LAURA MARIA","BRITO ROSARIO","F","REGION 4","SANTIAGO RODRIGUEZ","HOSPITAL PROVINCIAL  GENERAL SANTIAGO RODRIGUEZ","ODONTOLOGO","ODONTOLOGIA",{"v":59665,"d":"59,665.00"}]
[301,"JOSE DOLORES","BAEZ","M","REGION 4","SANTIAGO RODRIGUEZ","HOSPITAL PROVINCIAL  GENERAL SANTIAGO RODRIGUEZ","PORTERO","ADMINISTRATIVO",{"v":11000,"d":"11,000.00"}]
[302,"ROBER BALDOMERO","ALVAREZ NUÑEZ","M","REGION 4","SANTIAGO RODRIGUEZ","HOSPITAL PROVINCIAL  GENERAL SANTIAGO RODRIGUEZ","TECNICO DE RAYOS X","ADMINISTRATIVO",{"v":28665,"d":"28,665.00"}]
[303,"JORGE","ALCANTARA MORETA","M","REGION 4","SANTIAGO RODRIGUEZ","HOSPITAL PROVINCIAL  GENERAL SANTIAGO RODRIGUEZ","PORTERO","ADMINISTRATIVO",{"v":12100,"d":"12,100.00"}]
[304,"DAVID RAUL","RODRIGUEZ PEREZ","M","REGION 4","SANTIAGO RODRIGUEZ","HOSPITAL PROVINCIAL  GENERAL SANTIAGO RODRIGUEZ","PSIQUIATRA","SALUD MENTAL",{"v":82605,"d":"82,605.00"}]
[305,"NIBELKA ALEXANDRA","TORRES ALMANZAR","F","REGION 4","SANTIAGO RODRIGUEZ","HOSPITAL PROVINCIAL  GENERAL SANTIAGO RODRIGUEZ","PSICOLOGO (A)","SALUD MENTAL",{"v":50242,"d":"50,242.00"}]
[306,"KATTIA ELIANNY","RODRIGUEZ","F","REGION 4","SANTIAGO RODRIGUEZ","HOSPITAL PROVINCIAL  GENERAL SANTIAGO RODRIGUEZ","PSICOLOGO (A)","SALUD MENTAL",{"v":50242,"d":"50,242.00"}]
[307,"ANDREA FIDELINA","RODRIGUEZ ALMANZAR","F","REGION 4","SANTIAGO RODRIGUEZ","HOSPITAL PROVINCIAL  GENERAL SANTIAGO RODRIGUEZ","PSICOLOGA ","SALUD MENTAL",{"v":50242,"d":"50,242.00"}]
[308,"INDIANA GLORISEL","JIMENEZ MORENO","F","REGION 4","SANTIAGO RODRIGUEZ","HOSPITAL PROVINCIAL  GENERAL SANTIAGO RODRIGUEZ","PSICOLOGA ","SALUD MENTAL",{"v":50242,"d":"50,242.00"}]
[309,"YENNIFER","TORRES PEREZ","F","REGION 4","SANTIAGO RODRIGUEZ","HOSPITAL PROVINCIAL  GENERAL SANTIAGO RODRIGUEZ","SECRETARIA","ADMINISTRATIVO",{"v":18000,"d":"18,000.00"}]
[310,"LOURDES MARBELLYZ","ESTEVEZ PEÑA","F","REGION 4","SANTIAGO RODRIGUEZ","HOSPITAL PROVINCIAL  GENERAL SANTIAGO RODRIGUEZ","SECRETARIA","ADMINISTRATIVO",{"v":18000,"d":"18,000.00"}]
[311,"ANDRIANA MERCEDES","REYES CABRERA","F","REGION 4","SANTIAGO RODRIGUEZ","HOSPITAL PROVINCIAL  GENERAL SANTIAGO RODRIGUEZ","SECRETARIA","ADMINISTRATIVO",{"v":18000,"d":"18,000.00"}]
[312,"WALKIRIS ALTAGRACIA","PERALTA LOPEZ","F","REGION 4","SANTIAGO RODRIGUEZ","HOSPITAL PROVINCIAL  GENERAL SANTIAGO RODRIGUEZ","SECRETARIA","ADMINISTRATIVO",{"v":18000,"d":"18,000.00"}]
[313,"LUZ MARIA","ORTIZ","F","REGION 4","SANTIAGO RODRIGUEZ","HOSPITAL PROVINCIAL  GENERAL SANTIAGO RODRIGUEZ","SECRETARIA","ADMINISTRATIVO",{"v":18000,"d":"18,000.00"}]
[314,"ERIC NELSON","SUERO","M","REGION 4","SANTIAGO RODRIGUEZ","HOSPITAL PROVINCIAL  GENERAL SANTIAGO RODRIGUEZ","SEGURIDAD","MILITAR",{"v":12100,"d":"12,100.00"}]
[315,"JOSE NICOLAS","HERNANDEZ SANTANA","M","REGION 4","SANTIAGO RODRIGUEZ","HOSPITAL PROVINCIAL  GENERAL SANTIAGO RODRIGUEZ","SOPORTE INFORMATICO","ADMINISTRATIVO",{"v":31381.35,"d":"31,381.35"}]
[316,"BARLY ARTURO","PAULINO CANAAN","M","REGION 4","SANTIAGO RODRIGUEZ","HOSPITAL PROVINCIAL  GENERAL SANTIAGO RODRIGUEZ","SUB DIRECTOR","ADMINISTRATIVO",{"v":104000,"d":"104,000.00"}]
[317,"DAMAGRI YISSETTE","GOMEZ MUÑOZ","F","REGION 4","SANTIAGO RODRIGUEZ","HOSPITAL PROVINCIAL  GENERAL SANTIAGO RODRIGUEZ","SUPERVISOR (A)","ADMINISTRATIVO",{"v":55000,"d":"55,000.00"}]
[318,"CANDIDA YANIRIS","ESTEVEZ JIMENEZ","F","REGION 4","SANTIAGO RODRIGUEZ","HOSPITAL PROVINCIAL  GENERAL SANTIAGO RODRIGUEZ","SUPERVISOR (A) DE PROMOTORES","ADMINISTRATIVO",{"v":10000,"d":"10,000.00"}]
[319,"ARILEYDA","REYES CABRERA","F","REGION 4","SANTIAGO RODRIGUEZ","HOSPITAL PROVINCIAL  GENERAL SANTIAGO RODRIGUEZ","ENCARGADA DE COMPRAS","ADMINISTRATIVO",{"v":70000,"d":"70,000.00"}]
[320,"ESCARLIN ELIZABETH","GIL NUÑEZ","F","REGION 4","SANTIAGO RODRIGUEZ","HOSPITAL PROVINCIAL  GENERAL SANTIAGO RODRIGUEZ","SUPERVISORA DE ALMACEN Y SUMINISTRO","ADMINISTRATIVO",{"v":30000,"d":"30,000.00"}]
[321,"MANUEL PORFIRIO","ZAPATA ZAPATA","M","REGION 4","SANTIAGO RODRIGUEZ","HOSPITAL PROVINCIAL  GENERAL SANTIAGO RODRIGUEZ","SUPERVISOR DE SEGURIDAD","MILITAR",{"v":25000,"d":"25,000.00"}]
[322,"SENEIDA DEL CARMEN","ESTEVEZ RODRIGUEZ","F","REGION 4","SANTIAGO RODRIGUEZ","HOSPITAL PROVINCIAL  GENERAL SANTIAGO RODRIGUEZ","SUPERVISORA DE ENFERMERIA","ENFERMERAS GRADUADAS",{"v":55000,"d":"55,000.00"}]
[{"$f":"1+A329","v":323},"RAMONA NEMENCIA","BUENO UREÑA","F","REGION 4","SANTIAGO RODRIGUEZ","HOSPITAL PROVINCIAL  GENERAL SANTIAGO RODRIGUEZ","SUPERVISORA DE ENFERMERIA","ENFERMERAS GRADUADAS",{"v":55000,"d":"55,000.00"}]
[324,"BERIOSKA","TORRES PEREZ","F","REGION 4","SANTIAGO RODRIGUEZ","HOSPITAL PROVINCIAL  GENERAL SANTIAGO RODRIGUEZ","TECNICO ARCHIVISTICO","ADMINISTRATIVO",{"v":20000,"d":"20,000.00"}]
[325,"ALBA ELISA","LIRIANO PERALTA","F","REGION 4","SANTIAGO RODRIGUEZ","HOSPITAL PROVINCIAL  GENERAL SANTIAGO RODRIGUEZ","TECNICO ADMINISTRATIVO","ADMINISTRATIVO",{"v":16500,"d":"16,500.00"}]
[326,"JOSE ANTONIO","BAEZ GIL","M","REGION 4","SANTIAGO RODRIGUEZ","HOSPITAL PROVINCIAL  GENERAL SANTIAGO RODRIGUEZ","TECNICO DE MANTENIMIENTO","ADMINISTRATIVO",{"v":20000,"d":"20,000.00"}]
[327,"PABLO YUBERY","BUENO VERAS","M","REGION 4","SANTIAGO RODRIGUEZ","HOSPITAL PROVINCIAL  GENERAL SANTIAGO RODRIGUEZ","TECNICO DE CONTROL DE BIENES","ADMINISTRATIVO",{"v":20000,"d":"20,000.00"}]
[328,"RAFAEL ANGEL","JIMENEZ PILARTE","M","REGION 4","SANTIAGO RODRIGUEZ","HOSPITAL PROVINCIAL  GENERAL SANTIAGO RODRIGUEZ","TECNICO DE ORTOPEDIA","OTRO PERSONAL DE SALUD",{"v":28665,"d":"28,665.00"}]
[329,"DOMINGO DEL CARMEN","TORRES VALERIO","M","REGION 4","SANTIAGO RODRIGUEZ","HOSPITAL PROVINCIAL  GENERAL SANTIAGO RODRIGUEZ","TECNICO DE RAYOS X","RAYOS X",{"v":36382,"d":"36,382.00"}]
[330,"YOBANY","RODRIGUEZ SARIT","M","REGION 4","SANTIAGO RODRIGUEZ","HOSPITAL PROVINCIAL  GENERAL SANTIAGO RODRIGUEZ","TECNICO DE RAYOS X","RAYOS X",{"v":36382,"d":"36,382.00"}]
[331,"LUIS MANUEL","RODRIGUEZ GONZALEZ","F","REGION 4","SANTIAGO RODRIGUEZ","HOSPITAL PROVINCIAL  GENERAL SANTIAGO RODRIGUEZ","TECNICO DE RAYOS X","RAYOS X",{"v":36382,"d":"36,382.00"}]
[332,"JORGE ALBERTO","ESPINAL ECHAVARRIA","M","REGION 4","SANTIAGO RODRIGUEZ","HOSPITAL PROVINCIAL  GENERAL SANTIAGO RODRIGUEZ","TECNICO DE RAYOS X","RAYOS X",{"v":36382,"d":"36,382.00"}]
[333,"YOSELYN ALTAGRACIA","PEREZ PERALTA","F","REGION 4","SANTIAGO RODRIGUEZ","HOSPITAL PROVINCIAL  GENERAL SANTIAGO RODRIGUEZ","TECNICO RAYOS X","RAYOS X",{"v":36382,"d":"36,382.00"}]
[334,"ALIANY ALTAGRACIA","CARRASCO JIMENEZ","F","REGION 4","SANTIAGO RODRIGUEZ","HOSPITAL PROVINCIAL  GENERAL SANTIAGO RODRIGUEZ","TECNICO DE RECURSOS HUMANOS","ADMINISTRATIVO",{"v":25000,"d":"25,000.00"}]
[335,"MARIANELA ","MARIA COLLANTE","F","REGION 4","SANTIAGO RODRIGUEZ","HOSPITAL PROVINCIAL  GENERAL SANTIAGO RODRIGUEZ","TECNICO DE PLANIFICACION Y DESARROLLO","ADMINISTRATIVO",{"v":35000,"d":"35,000.00"}]
[336,"RAFAEL ANTONIO","GOMEZ","M","REGION 4","SANTIAGO RODRIGUEZ","HOSPITAL PROVINCIAL  GENERAL SANTIAGO RODRIGUEZ","VIGILANTE","ADMINISTRATIVO",{"v":12100,"d":"12,100.00"}]
[337,"FELIX DE JESUS","DOMINGUEZ","M","REGION 4","SANTIAGO RODRIGUEZ","HOSPITAL PROVINCIAL  GENERAL SANTIAGO RODRIGUEZ","VIGILANTE","ADMINISTRATIVO",{"v":12100,"d":"12,100.00"}]
[338,"JUAN VIANET","ACOSTA MARTE","M","REGION 4","SANTIAGO RODRIGUEZ","HOSPITAL PROVINCIAL  GENERAL SANTIAGO RODRIGUEZ","VIGILANTE","ADMINISTRATIVO",{"v":12100,"d":"12,100.00"}]
[339,"JOSE JULIAN","BERNARD GOMEZ","M","REGION 4","SANTIAGO RODRIGUEZ","HOSPITAL PROVINCIAL  GENERAL SANTIAGO RODRIGUEZ","VIGILANTE","ADMINISTRATIVO",{"v":12100,"d":"12,100.00"}]
[340,"ANA CRISTINA","ALMANZAR BAEZ DE DURAN","F","REGION 4","SANTIAGO RODRIGUEZ","HOSPITAL PROVINCIAL  GENERAL SANTIAGO RODRIGUEZ","VIGILANTE","ADMINISTRATIVO",{"v":12100,"d":"12,100.00"}]
[341,"EDUIN NICARLI ","CUEVAS FELIZ","M","REGION 4","SANTIAGO RODRIGUEZ","HOSPITAL PROVINCIAL  GENERAL SANTIAGO RODRIGUEZ","VIGILANTE","ADMINISTRATIVO",{"v":12100,"d":"12,100.00"}]
[342,"FREDY","NUÑEZ MOREL","M","REGION 4","SANTIAGO RODRIGUEZ","HOSPITAL PROVINCIAL  GENERAL SANTIAGO RODRIGUEZ","TECNICO DE YESO","ADMINISTRATIVO",{"v":28665,"d":"28,665.00"}]
[343,"ELIN YAEL","JEREZ GOMEZ","M","REGION 4","SANTIAGO RODRIGUEZ","HOSPITAL PROVINCIAL  GENERAL SANTIAGO RODRIGUEZ","VIGILANTE","ADMINISTRATIVO",{"v":12100,"d":"12,100.00"}]